Workbook

Sheet Cover Page
D1: Add company logo
N2: Version 24.2a (for incinerators) - 27/11/24
N4: Note that there is another version of this template available for co-incinerators
B8: Add photo
N13: Notes:
N14: This template may require adjustments by individual operators to meet specific reporting requirements as defined in the site Permit(s)
B29: Annual Performance Report 2024
B31: Permit EPR/BJ6178IX
B33: SUEZ R&R Kirklees EfW
B35: other name of facility (if applicable)
B37: Kirklees EfW
B39: Year: | C39: 2024
B41: Address: | C41: Diamond Street, Huddersfield, West Yorkshire HD1 6BZ
B43: Tel: | C43: 01484 448701
B45: Email: | C45: paula.bakes@SUEZ.com
B47: Prepared by: | C47: Paula Bakes | F47: Position: | G47: EIR Manager
B49: Approved by: | C49: Mark Ryan | F49: Position: | G49: Plant Manager
B51: Version: | C51: 1
B53: Issue Date:

Sheet Contents
A1: =+'Cover Page'!$B$29 -> Annual Performance Report 2024 | E1: =+'Cover Page'!$B$33 -> SUEZ R&R Kirklees EfW
A3: Contents | K3: Notes:
A4: Section | B4: Subject | H4: Page | K4: Section references and Page nos. to be inserted
B5: Facility Information | K5: Sections and Subjects may require adjustment by individual operators to meet specific reporting requirements as defined in the sites Permit(s)
B6: Operational Data
B7: Operational Summary
B8: Performance Form 1
B9: Energy Form 1
B10: Permit Compliance
B11: Improvements
B12: Public Liaison
B13: Carbon dioxide and nitrous oxide emissions
B14: Residue Quality
B15: Emissions to Water
B16: Emissions to Air (periodically monitored)
B17: Emissions to Air (continuously monitored)
B18: Hydrogen Chloride emissions
B19: Sulphur Dioxide emissions
B20: Oxides of Nitrogen emissions
B21: Total Organic Carbon emissions
B22: Particulate Matter emissions
B23: Carbon Monoxide emissions
B24: Ammonia emissions
A27: Version Control
A28: Section | B28: Information | H28: Date
A35: Distribution
A36: Copy | B36: Name, Role | H36: No.
A45: This report is required under the Industrial Emissions Directive’s Article 55(2) requirements on reporting and public information on waste incineration plants and co-incineration plants, which require the operator to produce an annual report on the functioning and monitoring of the plant and make it available to the public.

Sheet Facility Info
A1: =+'Cover Page'!$B$29 -> Annual Performance Report 2024 | E1: =+'Cover Page'!$B$33 -> SUEZ R&R Kirklees EfW
A3: Plant Description and Design | K3: Notes:
A5: This non-hazardous waste incinerator operates 24/7 and can receive up to 150,000 tonnes of municipal waste from Kirklees Council as well as commercial/trade waste. The plant has one furnace line with a processing capacity of 136,000 tonnes per annum. The heat produced by waste incineration is used to raise superheated steam which generates 9.5 MWh of electricity. Activities associated with the incineration are receipt and storage of municipal waste, production of steam and electricity, abatement of flue gas and handling of Incinerator Bottom Ash (IBA) and Air Pollution Control Residue (APCR). | K5: Include summary of plant design, design capacity, no. of combustion lines, electrical and heat capacity and any other general information that describes the facility, its location and purpose
A20: Summary of Operational Processes and Procedures
A22: Incoming waste is delivered to site by refuse collection trucks. It is then checked in, weighed and delivered into the reception hall. RECEPTION HALL A large reception hall allows for refuse collection trucks to manoeuvre and tip waste safely. Air needed for combustion is drawn into the furnace from here so that odour and dust do not escape the building. BUNKER Waste vehicles reverse to a wheel stop and tip their loads into a large concrete bunker. Mixing of waste occurs as the crane driver sorts the waste looking for unsuitable material to be removed, and to improve the homogeneity of the incinerator feedstock. CONTROL ROOM The plant’s control room centralises the operation of all equipment, including the grab crane used to mix and load waste into a hopper that feeds the furnace. All on-site functions are monitored automatically and manually. Its systems verify in real time that equipment is functioning properly, continuously monitor the combustion gas, and maximise the efficiency of the entire EfW process. GRATE AND BOILER Waste is lifted into the charging hoppers by the crane. From here it falls into the furnace-charging chute and then onto the grate system for incineration. The thermal energy released from the burning is used to convert water to super-heated steam. At high pressure, this steam drives a turbine to generate electricity. ELECTRICITY GENERATION Electricity is generated at 11kv, with an electric capacity of 9.5 MWh. INCINERATOR BOTTOM ASH (IBA) Ash left on the grate after incineration is carried by conveyor, after quenching, to a storage bunker. A magnet above the conveyor extracts ferrous material for recycling. The remaining bottom ash is trucked off-site for recycling. AIR-COOLED CONDENSERS After exiting the turbine, the air stream is cooled and condensed back into water through air condensers. This recovered water is treated and reused in the boilers to produce more steam. AIR-COOLED CONDENSERS After exiting the turbine, the air stream is cooled and condensed back into water through air condensers. This recovered water is treated and reused in the boilers to produce more steam. EMISSION CONTROL The gases from the furnace are subject to a rigorous cleaning process involving selective non-catalytic reduction (SNCR), spray absorbers, and active carbon injection. This removes oxides of nitrogen, acidic gases, dioxins, and heavy metals from the gas stream. | K22: Include summary of key processes and procedures such as (but not limited to); waste reception, control rooms, grate, bed and boiler, energy & heat generation, cooling systems, residue management, emission controls, health and safety systems, maintenance

Sheet Operational Data
A1: =+'Cover Page'!$B$29 -> Annual Performance Report 2024 | E1: =+'Cover Page'!$B$33 -> SUEZ R&R Kirklees EfW
A3: Operational Data
A4: Plant Size | B4: 135000 | D4: tonnes pa | E4: 11.5 | F4: MWth | G4: 10 | H4: MWe | J4: Notes:
A5: No. of combustion lines | B5: 1 | D5: No. of Turbines: | F5: 1 | J5: * - RDF to include SRF
J6: ** - Combusted tonnage = tonnes delivered in period + (tonnes in bunker at start of period – tonnes in bunker at end of period), or equivalent calculation depending on plant type
A7: Waste types received | B7: Unit | C7: Q1 | D7: Q2 | E7: Q3 | F7: Q4 | G7: Year Total | H7: %
A8: Household / Local Authority | B8: tonnes | C8: 31241 | D8: 23499 | E8: 34505 | F8: 34000 | G8: =SUM(C8:F8) -> 123245 | H8: =IF(G8>0,G8/$G$18,"-") -> 0.9749084379
A9: Commercial & Industrial | C9: 657 | D9: 405 | E9: 533 | F9: 777 | G9: =SUM(C9:F9) -> 2372 | H9: 0.01876329924 | J9: *** - CHP plants only
A10: Hazardous | G10: 0 | H10: - | J10: **** Availability Definition: 'the availability of a line is to be calculated by the number of hours the line reported Continuously Monitored emission levels to the Regulator through the calendar year divided by the total number of hours in that year. The overall plant availability is calculated as the Mean of all lines in the plant. For clarity this includes periods of abnormal operation.' Rationale: The primary function of an Energy from Waste facility is the disposal of waste. It follows therefore that the availability of a plant is determined by the period of time a facility spends undertaking this activity.
A11: Clinical | C11: 188 | D11: 199 | E11: 215 | F11: 198 | G11: 800 | H11: 0.006328262813
A12: Waste wood (biomass) | G12: 0 | H12: -
A13: Refuse Derived Fuel * - H'hold/LA | G13: =SUM(C13:F13) -> 0 | H13: -
A14: Refuse Derived Fuel * - C&I | G14: 0 | H14: -
A15: Other [Please specify] | G15: 0 | H15: -
A16: Other [Please specify] | G16: 0 | H16: -
A17: Other [Please specify] | G17: 0 | H17: -
A18: Total waste received | C18: =SUM(C8:C17) -> 32086 | D18: =SUM(D8:D17) -> 24103 | E18: =SUM(E8:E17) -> 35253 | F18: =SUM(F8:F17) -> 34975 | G18: 126417
A19: Rejected Waste | G19: =SUM(C19:F19) -> 0 | H19: =IF(G19>0,G19/$G$18,"-") -> -
A20: Unprocessed waste transferred out | G20: =SUM(C20:F20) -> 0 | H20: =IF(G20>0,G20/$G$18,"-") -> -
A21: Total waste combusted ** | C21: 32086 | D21: 24103 | E21: 35253 | F21: 34975 | G21: =SUM(C21:F21) -> 126417
J22: Password for protected cells A password has been set to prevent accidental editing of cells with formulae. If you still need to make an edit for some reason then the password = 1234
A23: Energy Usage / Export | B23: Unit | C23: Q1 | D23: Q2 | E23: Q3 | F23: Q4 | G23: Year Total | H23: KWh/te
A24: Power Generated | B24: MWh | C24: 17855 | D24: 14923 | E24: 21092 | F24: 21989 | G24: =SUM(C24:F24) -> 75859 | H24: =IF(G24>0,G24*1000/$G$21,"-") -> 600.0696109
A25: Power Exported | C25: 15628.01898 | D25: 13046.8737 | E25: 18422.91064 | F25: 19308.01842 | G25: =SUM(C25:F25) -> 66405.82174 | H25: =IF(G25>0,G25*1000/$G$21,"-") -> 525.2918653
A26: Power Used on site | C26: 2368 | D26: 1991 | E26: 2832 | F26: 2848 | G26: =SUM(C26:F26) -> 10039 | H26: =IF(G26>0,G26*1000/$G$21,"-") -> 79.41178797
A27: Power Imported | C27: 338.716794 | D27: 309.376994 | E27: 13.202976 | F27: 0 | G27: 661.296764 | H27: =IF(G27>0,G27*1000/$G$21,"-") -> 5.23107465
A28: Parasitic Load | B28: % | C28: =IF(C24>0,1-C25/(C24+C27),"-") -> 0.1410210922 | D28: =IF(D24>0,1-D25/(D24+D27),"-") -> 0.143477495 | E28: =IF(E24>0,1-E25/(E24+E27),"-") -> 0.1270915205 | F28: =IF(F24>0,1-F25/(F24+F27),"-") -> 0.121923761 | G28: =IF(G24>0,1-G25/(G24+G27),"-") -> 0.1321802901
A29: Thermal Energy Produced *** | B29: MWh | G29: =SUM(C29:F29) -> 0 | H29: =IF(G29>0,G29*1000/$G$21,"-") -> -
A30: Thermal Energy Exported *** | G30: 0 | H30: =IF(G30>0,G30*1000/$G$21,"-") -> -
A31: R1 value (if applicable) | B31: R1
A33: Waste Disposal & Recovery | B33: Unit | C33: Q1 | D33: Q2 | E33: Q3 | F33: Q4 | G33: Year Total | H33: % inputs
A34: APC Residues - produced | B34: tonnes | C34: 1091 | D34: 856 | E34: 1226 | F34: 1247 | G34: =SUM(C34:F34) -> 4420 | H34: =IF(G34>0,G34/$G$21,"-") -> 0.03496365204
A35: IBA - produced | C35: 5986 | D35: 4897 | E35: 7091 | F35: 6795 | G35: 24769 | H35: =IF(G35>0,G35/$G$21,"-") -> 0.195930927
A36: Metals recycling | C36: 601 | D36: 477 | E36: 699 | F36: 600 | G36: =SUM(C36:F36) -> 2377 | H36: 0.01880285088
A37: Other | C37: 0 | D37: 0 | E37: 0 | F37: 0 | G37: =SUM(C37:F37) -> 0 | H37: -
A38: Other | C38: 0 | D38: 0 | E38: 0 | F38: 0 | G38: 0 | H38: -
A39: Other | C39: 0 | D39: 0 | E39: 0 | F39: 0 | G39: 0 | H39: -
A41: Raw Material Usage | B41: Unit | C41: Q1 | D41: Q2 | E41: Q3 | F41: Q4 | G41: Year Total | H41: kg or Ltr /te
A42: Mains Water | B42: m3 | C42: 3000 | D42: 3000 | E42: 3000 | F42: 3000 | G42: =SUM(C42:F42) -> 12000 | H42: =IF(G42>0,G42/$G$21,"-") -> 0.09492394219
A43: Other Water | B43: m3 | C43: 5544 | D43: 4414 | E43: 6805 | F43: 6506 | G43: 23269 | H43: =IF(G43>0,G43/$G$21,"-") -> 0.1840654342
A44: Ammonia | B44: kgs | C44: - | D44: - | E44: - | F44: - | G44: =SUM(C44:F44) -> 0 | H44: -
A45: Urea | B45: kgs | C45: 53000 | D45: 32000 | E45: 38000 | F45: 32000 | G45: =SUM(C45:F45) -> 155000 | H45: 1.22610092
A46: Activated Carbon | B46: kgs | C46: 9538 | D46: 9669 | E46: 10320 | F46: 10800 | G46: =SUM(C46:F46) -> 40327 | H46: 0.3189998181
A47: Lime / hydrated lime | B47: kgs | C47: 184000 | D47: 196000 | E47: 242000 | F47: 243000 | G47: =SUM(C47:F47) -> 865000 | H47: 6.842434166
A48: Fuel oil | B48: ltrs | C48: 41605 | D48: 134409 | E48: 22790 | F48: 165216 | G48: =SUM(C48:F48) -> 364020 | H48: 2.879517786
A49: Gas | B49: cuf | G49: 0
A50: Other | G50: 0
A52: Summary | B52: Line/Unit | C52: Q1 | D52: Q2 | E52: Q3 | F52: Q4 | G52: Year Total | I52: Hrs in year
A53: Availability of waste combustion by line, hrs **** | B53: =+B5 -> 1 | C53: 1786.5 | D53: 1555 | E53: 2193.5 | F53: 2128.5 | G53: =SUM(C53:F53) -> 7663.5 | H53: =+G53/$I$53 -> 0.8748287671 | I53: 8760
B54: 2 | G54: 0 | H54: =+G54/$I$53 -> 0
B55: 3 | G55: 0 | H55: 0
B56: 4 | G56: 0 | H56: 0
B57: 5 | G57: =SUM(C57:F57) -> 0 | H57: 0
A58: Overall Availability, mean avg. of all lines, hrs | C58: =C53 -> 1786.5 | D58: =D53 -> 1555 | E58: 2193.5 | F58: 2128.5 | G58: =AVERAGE(G53:G57) -> 1532.7 | H58: 0.1749657534
A59: Hours of turbine operations, hrs | B59: 1 | C59: 1682 | D59: 1519 | E59: 2198 | F59: 2208 | G59: 7607 | H59: 0.8683789954
A60: Hours of turbine operations, hrs | B60: 2 | G60: 0 | H60: 0
A61: Hours of heat / steam export | G61: 0 | H61: =IF(B61>0,G60/I53,"n/a") -> n/a
A62: Net Calorific Value of waste | B62: MJ/kg | C62: 9.2 | D62: 9.2 | E62: 9.7 | F62: 9.5 | G62: 9.4
A63: Abnormal Events | B63: qty. | G63: 0 | H63: =IF(G63>0,"yes","no") -> no
A64: Abnormal operation | B64: hours | G64: 0 | H64: =+(G64)/I53 -> 0
A65: Permit Breaches | B65: qty. | G65: 0 | H65: =IF(G65>0,"yes","no") -> no

Sheet Operational Summary
A1: =+'Cover Page'!$B$29 -> Annual Performance Report 2024 | E1: =+'Cover Page'!$B$33 -> SUEZ R&R Kirklees EfW
A3: Summary of Plant Operations and Maintenance during the reporting year | K3: Notes:
A5: Operations: 398 hours of unplanned downtime; due to boiler tube steam leaks in March, and a delayed return to service after the outage. OEE has been good with minimal speed losses. Key maintenance activity: install of a new Primary Air Preheater to improve combustion control and thermal efficiency, stack flowmeters have been upgraded to MCERTS standard, in addition to the install of new auditable fuel flowmeters (in order to standardise across the fleet). | K5: Include summary of key operational and/or maintenance activity undertaken in the year, such as any major component upgrades and/or replacements
A29: Summary of Residue Handling for the reporting year
A31: Conveyor Apron Pan Conveyor failed in December, with a temporary conveyor being installed to transport ash awaiting install of a new conveyor. Burnout quality has been excellent, with 0 IBA exceedances and APCR continues to be taken off-site by Castle Environmental. Ferrous metals are separated and sent for recyling. | K31: Include in here a summary of residue handling regimes and destinations
A54: =+'Cover Page'!C39 -> 2024 | B54: Plant shut-downs
A55: Date | B55: Reason for shut-down | K55: Provide a very brief reason for plant shut-down e.g. "Shut-down prior to major outage"; "Emergency shut-down due to boiler tube leak" There is no need to include periods of hot-standby here (e.g. to clear feed chute hopper blockages). For clinical waste incinerators which require regular shut-downs for boiler cleaning, there is no need to record these here.
A56: 2024-03-17 | B56: Unplanned shutdown due to boiler tube leak
A57: 2024-03-28 | B57: Shutdown prior to annual outage

Sheet Perf. Form 1
A1: =+'Cover Page'!C39 -> 2024 | B1: Annual Reporting Performance Form 1
A3: =+'Cover Page'!B31 -> Permit EPR/BJ6178IX | F3: Operator: | G3: =+'Cover Page'!B37 -> Kirklees EfW
A4: Facility: | B4: =+'Cover Page'!B33:I33 -> SUEZ R&R Kirklees EfW | F4: Form: | G4: Performance 1
A6: Reporting Period from: | D6: January | F6: to: | G6: December
A8: =+A1 -> 2024 | B8: Annual Reporting of Waste Disposal and Recovery
A9: Waste Description | C9: Disposal Route(s) | E9: Disposal Tonnes | G9: Recovery Tonnes | I9: % / tonne of waste incinerated
A10: 1) Hazardous Wastes
A11: APC Residues | E11: 4420 | I11: =IF((E11+G11)>0,(E11+G11)/'Operational Data'!$G$21, "-") -> 0.03496365204
A12: IBA | I12: =IF((E12+G12)>0,(E12+G12)/'Operational Data'!$G$21, "-") -> -
I13: =IF((E13+G13)>0,(E13+G13)/'Operational Data'!$G$21, "-") -> -
I14: =IF((E14+G14)>0,(E14+G14)/'Operational Data'!$G$21, "-") -> -
A15: Total Hazardous Waste | E15: =SUM(E11:F14) -> 4420 | G15: =SUM(G11:H14) -> 0 | I15: =IF((E15+G15)>0,(E15+G15)/'Operational Data'!$G$21, "-") -> 0.03496365204
A17: 2) Non-Hazardous Wastes
A18: IBA | E18: 24769 | I18: =IF((E18+G18)>0,(E18+G18)/'Operational Data'!$G$21, "-") -> 0.195930927
A19: Ferrous Metal | E19: 2377 | I19: =IF((E19+G19)>0,(E19+G19)/'Operational Data'!$G$21, "-") -> 0.01880285088
A20: Process Water | I20: =IF((E20+G20)>0,(E20+G20)/'Operational Data'!$G$21, "-") -> -
I21: =IF((E21+G21)>0,(E21+G21)/'Operational Data'!$G$21, "-") -> -
I22: =IF((E22+G22)>0,(E22+G22)/'Operational Data'!$G$21, "-") -> -
A23: Total Non-Hazardous Waste | E23: =SUM(E18:F22) -> 27146 | G23: =SUM(G18:H22) -> 0 | I23: =IF((E23+G23)>0,(E23+G23)/'Operational Data'!$G$21, "-") -> 0.2147337779
A24: TOTAL WASTE | E24: =+E23+E15 -> 31566 | G24: =+G23+G15 -> 0 | I24: =IF((E24+G24)>0,(E24+G24)/'Operational Data'!$G$21, "-") -> 0.2496974299
A26: Operator’s comments :
A31: =+A1 -> 2024 | B31: Annual Reporting of Water and Other Raw Material Usage
A32: Raw Material | E32: Usage | G32: Unit | H32: Specific Usage | J32: Unit
A33: Mains Water | E33: =+'Operational Data'!G42 -> 12000 | G33: m3 | H33: =IF(E33>0,E33/'Operational Data'!$G$21,"-") -> 0.09492394219 | J33: m3/te
A34: Total Water | E34: =+'Operational Data'!G43+'Operational Data'!G42 -> 35269 | G34: m3 | H34: =IF(E34>0,E34/'Operational Data'!$G$21,"-") -> 0.2789893764 | J34: m3/te
A35: Urea / Ammonia | E35: =+'Operational Data'!G45 -> 155000 | G35: kg | H35: =IF(E35>0,E35/'Operational Data'!$G$21,"-") -> 1.22610092 | J35: kg/te
A36: Activated Carbon | E36: =+'Operational Data'!G46 -> 40327 | G36: kg | H36: =IF(E36>0,E36/'Operational Data'!$G$21,"-") -> 0.3189998181 | J36: kg/te
A37: Lime / hydrated lime / Sodium Bicarb. | E37: =+'Operational Data'!G47 -> 865000 | G37: kg | H37: =IF(E37>0,E37/'Operational Data'!$G$21,"-") -> 6.842434166 | J37: kg/te
A39: Operator’s comments :
A43: =+A31 -> 2024 | B43: Annual Reporting of other performance indicators
A44: Parameter | C44: Results by Line
C45: A1 | D45: A2 | E45: A3 | F45: A4 | G45: A5 | I45: Turbine 1 | J45: Turbine 2
A46: Operating hours for the year, hours | C46: 7664
A47: Number of periods of abnormal operation, qty.
A48: Cumulative hours of abnormal operation for this year, hours
A50: Operator’s comments :
A54: Signed: | G54: Date:

Sheet Energy Form 1
A1: =+'Cover Page'!C39 -> 2024 | B1: Annual Reporting of Energy Usage/Export
A3: =+'Cover Page'!B31 -> Permit EPR/BJ6178IX | F3: Operator: | G3: =+'Cover Page'!B37 -> Kirklees EfW
A5: Facility: | B5: =+'Cover Page'!B33:I33 -> SUEZ R&R Kirklees EfW | F5: Form: | G5: Energy 1
A7: Reporting Period from: | D7: =+'Perf. Form 1'!D6:E6 -> January | F7: to: | G7: =+'Perf. Form 1'!G6:H6 -> December
A9: Energy Source | D9: Energy Usage | F9: Unit | G9: Specific Usage (KWh/tonne incinerated
A10: Electricity Produced | D10: =+'Operational Data'!G24 -> 75859 | F10: MWh | G10: =+'Operational Data'!H24 -> 600.0696109
A11: Electricity Imported | D11: =+'Operational Data'!G27 -> 661.296764 | F11: MWh | G11: =+'Operational Data'!H27 -> 5.23107465
A12: Electricity Exported | D12: =+'Operational Data'!G25 -> 66405.82174 | F12: MWh | G12: =+'Operational Data'!H25 -> 525.2918653
A13: Gas Oil | F13: tonnes
A14: Steam/hot water exported | D14: =+'Operational Data'!G30 -> 0 | F14: GWh | G14: =+'Operational Data'!H30 -> -
A18: Operator’s comments :
A29: Signed: | G29: Date:

Sheet Public Liasion
A1: =+'Cover Page'!$B$29 -> Annual Performance Report 2024 | E1: =+'Cover Page'!$B$33 -> SUEZ R&R Kirklees EfW
A3: Details of Public & Stakeholder Liaison
A5: Summary of events held during the reporting year.
A6: Date | C6: Description
A7: 2024-02-05 | C7: Plant Tour with the Compass School, Sowerby Bridge
A9: 2024-02-14 | C9: Plant Tour with Kirklees Council
A11: 2024-04-11 | C11: Site visit from Kirklees Council to explain how bulky items tipped in the EfW waste pit can cause blockages - part of the project to reduce downtime caused by oversized waste
A13: 2024-04-23 | C13: Plant Tour for 6 members of the public
A15: 2024-05-10 | C15: Site visit from Kirklees Council to observe tipping hall activities
A17: 2024-05-21 | C17: Mount Pleasant Junior School visit to support annual "Aspirations Day" event
A19: 2024-05-25 | C19: Site visit to explain how bulky items tipped in the EfW waste pit can cause blockages - part of the project to reduce downtime caused by oversized waste
A21: 2024-06-17 | C21: Hosting 2 Enviornment Agency officers in a knowledge sharing event to show them the EfW process and how a site is controlled
A23: 2024-06-18 | C23: Visit to Battyford CE Primary school to teach the importance of the 4Rs in waste management
A25: 2024-06-25 | C25: Hosting 2 Enviornment Agency officers in a knowledge sharing event to show them the EfW process and how a site is controlled
A27: 2024-07-05 | C27: Presentation on local means of reyclcing and the EfW process to Oak CE Primary School Huddersfield
A29: 2024-07-16 | C29: Plant Tour with Kirklees Council
A31: 2024-07-24 | C31: Plant Tour with Kirklees Council Recycling Champions
A33: 2024-08-08 | C33: Plant Tour for 8 members of the public
A35: 2024-09-17 | C35: Plant Tour for Leeds Trinity University students
A37: 2024-09-18 | C37: Plant Tour for staff members of the University of Huddesfield Sustainability Team
A40: List of events planned for next year
A41: Date | C41: Description
A53: If you wish to be involved in the public liaison programme, please contact _________________

Sheet Permit Compliance
A1: =+'Cover Page'!$B$29 -> Annual Performance Report 2024 | E1: =+'Cover Page'!$B$33 -> SUEZ R&R Kirklees EfW
A3: Summary of Permit Compliance
A5: Compliance with permit limits for continuously monitored pollutants
A7: The plant met its emission limits as shown in the table below:
A8: Substance | C8: Percentage time compliant during operationNote 1 | L8: Notes:
C9: Half-hourly limit | F9: Daily limit | L9: Note 1: Please report to 2 decimal places, i.e. xx.xx% Note 2: Please enter into this table any permit non-compliances that the EA has given a CCS score for. Please also enter any other non-compliances which you have notified to the EA (e.g. ELV exceedances) but which have not yet been assessed by the EA. There is no need to enter any notifications which were subsequently assessed by the EA not to be permit breaches. Note 3: Please enter information here (rather than just referencing the notifications that were sent to the EA) including where relevant the incineration line reference, pollutant and value of the measured result for any ELV exceedances.
A10: Particulates | C10: 1 | F10: 1
A11: Oxides of nitrogen | C11: 1 | F11: 1
A12: Sulphur dioxide | C12: 1 | F12: 1
A13: Carbon monoxide | C13: 100% 95% of 10-min averages | F13: 1
A14: Total organic carbon | C14: 1 | F14: 1
A15: Hydrogen chloride | C15: 1 | F15: 1
A16: Hydrogen fluoride | C16: n/a | F16: N/A
C17: xx.xx % | F17: xx.xx %
A19: Summary of non-compliances under the permit Note 2
A20: Date | B20: Summary of non-compliance Note 3 | D20: Reason | G20: Measures taken to prevent reoccurrence | H20: CCS score if applicable*
H21: Impact | I21: Root cause
A27: *If the Environment Agency (EA) has given a Compliance Classification Scheme (CCS) score due to a permit non-compliance it should be entered here (CCS4 = No impact; CCS3 = Minor impact; CCS2 = Significant impact; CCS1 = Major impact). If the EA has not yet assessed a non-compliance which you have notified to them, these columns should be left blank.
A29: Summary of any complaints received and actions to taken to resolve them.
A30: Date | B30: Summary of complaint [including Line/Reference] | E30: Reason (including whether substantiated by the operator or the EA) | H30: Measures taken to prevent reoccurrence

Sheet Improvements
A1: =+'Cover Page'!$B$29 -> Annual Performance Report 2024 | E1: =+'Cover Page'!$B$33 -> SUEZ R&R Kirklees EfW
A3: Summary of Plant Improvements
A5: Summary of any efficiency improvements that have been completed within the year.
A6: Informing and guiding the customer (Kirklees Council) of the impacts of oversized waset on EfWs - at Transfer Stations and HWRCs - implemented to reduce burner fuel usage and improveavailability. Project was conducted by rolling out signage at tipping hall entrace, and upstream (TLSs & HWRCs) as well as formal 'Toolbox Talks' to ensure staff at upreatm facilities across the contract were aware of the impacts that oversized waste has on the the EfW and residue handling. An explosion detection model was implemented on site to monitor the impact of gas canistersin the waste stream, reviewing live process data to monitor the frequency and seasonality of explosions within the combustion process. This data will be used to capture gas canisters before they enter the waste pit, reducing the downtime associated with reactive mainteance that could be caused.
A16: Summary of any permit improvement conditions that have been completed within the year and the resulting environmental benefits.
A17: N/A
A27: Summary of any changes to the plant or operating techniques which required a variation to the permit and a summary of the resulting environmental impact.
A28: N/A
A38: Summary of any other improvements made to the plant or planned to be made and a summary of the resulting environmental benefits.
A39: SNCR optimisation study improved ammonia slip and required mainteance across the year by altering the source of transport water from processed canal water to towns water, leading to a reduction in biological growth in the system, and thus ensuring a more even distrubution of urea flow through the spray nozzle matrix.

Sheet CO2 N2O
A1: =+'Cover Page'!$B$29 -> Annual Performance Report 2024 | C1: =+'Cover Page'!$B$33 -> SUEZ R&R Kirklees EfW
A3: Carbon dioxide emissions and biogenic content of waste inputs | F3: Notes:
A5: Carbon dioxide emissions (all types of plant)
B6: Annual mass of carbon dioxide released | C6: tonnes | D6: 123578.64
B7: Annual mass of carbon dioxide released per tonne of waste burned | C7: t CO2 / t waste | D7: =D6/'Operational Data'!G21 -> 0.97754764
B8: Annual mass of carbon dioxide released per MWh of energy exported | C8: t CO2 / MWh export | D8: =D6/'Operational Data'!G25 -> 1.860960933
B9: Description of how annual carbon dioxide mass emission has been calculated. See Note 1 | C9: Directly from CEMS data. | F9: Note 1: All permits require operators to continuously monitor CO2 to EN14181 and flow to BS EN 16911-2 (unless otherwise agreed in writing). Operators must therefore use the results from these instruments to calculate their annual CO2 emissions. Where an operator does not have a flow meter calibrated to BS EN 16911-2, the averaged flow measurement from that year's periodic monitoring can be used instead. If the plant does not have calibrated CO2 CEMS, a suitably justified emissions factor can be used.
A10: Nitrous oxide emissions (only plants which use ammonia or urea to abate NOx emissions)
B11: Annual mass emissions of nitrous oxide | C11: tonnes N2O | D11: 2.4201
B12: Description of how annual nitrous oxide mass emission has been calculated See Note 2 | C12: Directly from CEMS data. | F12: Note 2: All permits require operators to continuously monitor N2O to EN14181 and flow to BS EN 16911-2, unless otherwise agreed in writing. Operators must therefore use the results from these instruments to calculate their annual N2O emissions. Where an operator does not have a flow meter calibrated to BS EN 16911-2, the averaged flow measurement from periodic monitoring can be used instead. If the plant does not have calibrated N2O CEMS, data from periodic monitoring or a suitably justified emissions factor can be used instead.
A13: Total annual carbon dioxide + nitrous oxide emissions. See Note 3. | C13: tonnes CO2e | D13: =D6+(D11*265) -> 124219.9665 | F13: Note 3: Total annual carbon dioxide and nitrous oxide emissions reported as carbon dioxide equivalent where 1 tonne nitrous oxide is equivalent to 265 tonnes carbon dioxide.
A14: Biogenic CO2 emissions (See Note 4) | F14: Note 4: Only plants combusting residual municipal waste, refuse derived fuel or solid recovered fuel need complete this section.
B15: Percentage of total carbon dioxide emissions arising from biogenic waste | C15: % | D15: 0.562
B16: No. of measurements undertaken | C16: Number
B17: Description of how percentage biogenic carbon dioxide emissions have been measured or calculated. See Note 5 | C17: Assessed from breakdown of waste composition from third-party reporting (M.E.L) and the respective carbon content of each component. Assumed to be the same as the biogenic CO2 fraction of the total CO2 emissions from the plant as per note 5. | F17: Note 5: The results from C14 sampling should be used if this is carried out at the plant (either via an installed sampler or from spot samples). Otherwise, as an approximation (and in lieu of any more accurate metrics which may be developed in future), the measured or estimated biogenic fraction by net calorific value (see Note 6) can be assumed to be the same as the biogenic CO2 fraction of the total CO2 emissions from the plant.
A18: Biogenic fraction of waste feedstock (See Note 4)
B19: Yearly average biogenic percentage of the waste by net calorific value (NCV) | C19: % | D19: 0.5198
B20: Description of how biogenic percentage (by NCV) has been calculated or estimated. See Note 6 | C20: Assessed from breakdown of waste composition from third-party reporting (M.E.L) and the respective carbon content of each component | F20: Note 6: If C14 sampling is carried out at the plant, the methodology set out in the embedded document entitled "Renewable Energy Association Energy Content of Fuels - Description of Method" embedded below can be used to calculate the biogenic percentage by net calorific value. Otherwise, data from waste sampling or BIOMA software can be used; or if none of these are available, an estimated figure with justification or a figure assumed on the basis of up-to-date industry data can be used.
B21: Yearly average biogenic percentage of the waste by mass | C21: % | D21: 0.562
B22: If waste sampling undertaken, no. of samples used to ascertain average biogenic percentages above | C22: Number | D22: 1
B23: Description of how biogenic percentage (by mass) has been calculated or estimated. See Note 7 | F23: Note 7: Where available, data from waste sampling should be used; otherwise, an estimated figure with justification can be used, or a figure assumed on the basis of up-to-date industry data.
B25: Comments:

Sheet Residue Quality
A1: =+'Cover Page'!$B$29 -> Annual Performance Report 2024 | E1: =+'Cover Page'!$B$33 -> SUEZ R&R Kirklees EfW
A3: Residue Quality Monitoring Requirements
A5: Summary of monitoring undertaken and compliance
A6: Quarterly IBA and APCR samples are taken at Kirklees
A8: Weekly hazard assessments are carried out at Kirklees
A13: Commentary on any specific events
A14: Date & Event | C14: Description
A27: Residue Quality Monitoring Results
A28: Parameter (unit) | C28: Limit* | D28: Normal Operation
D29: Bottom ash | F29: APC Residues
A30: Loss on Ignition (average %) | C30: <5%
A31: Total Organic Carbon (average %) | C31: <3% | D31: 1.13
A32: No. of Assessments Undertaken | C32: --- | D32: 1 per quarter Line 1 | F32: 1 per quarter Line 1
A33: No. of Hazardous Results | C33: --- | D33: Weekly hazard assessments unless Plant is on outage
A34: * The permit will specify a limit of either 5% loss on ignition or 3% total organic carbon. If both are measured anyway, please enter the results here, even where the limit does not apply.
A36: Comments :
A37: Quarterly samples are taken for 1 line none of the samples results for TOC were above 3%

Sheet Water
A1: =+'Cover Page'!$B$29 -> Annual Performance Report 2024 | E1: =+'Cover Page'!$B$33 -> SUEZ R&R Kirklees EfW
A3: Emissions to Water
A5: Summary of monitoring undertaken and compliance
A6: No Water sampling carried out at Kirklees
A13: Commentary on any specific events
A14: Date & Event | C14: Description
A22: Emissions to Water / Sewer
A23: Parameter | D23: Monitoring Frequency | F23: Limit | G23: Target | H23: Max. | I23: Average

Sheet Air (periodic)
A1: =+'Cover Page'!$B$29 -> Annual Performance Report 2024 | E1: =+'Cover Page'!$B$33 -> SUEZ R&R Kirklees EfW
A3: Emissions to Air (periodically monitored)
A5: Summary of monitoring undertaken, standards used and compliance | K5: Notes:
K6: Template may require adjustment for any bespoke monitoring requirements of permit - please also check that all default ELV values, reference periods and the stated oxygen reference value match those for your plant, and edit if necessary!
A9: Results of emissions to air that are periodically monitored - oxygen reference 11%
A10: Substance | C10: Ref. Period | D10: Emission Limit Value | F10: Average | K10: User to add additional tables as necessary, depending on whether quarterly or bi-annual reporting is required for the compliance year
F11: A1 | G11: A2 | H11: A3 | I11: A4 | J11: A5
A12: Hydrogen fluoride | C12: 1 hr | D12: 1 mg/m3 | F12: 0.235
A13: Cd and Tl and their compounds | C13: 0.5-8hrs | D13: 0.02 mg/m3 | F13: 0.00165
A14: Hg and its compounds | C14: 0.5-8hrs | D14: 0.02 mg/m3 | F14: 0.00155
A15: Sb, As, Pb, Cr, Co, Cu, Mn, Ni, V and their compounds | C15: 0.5-8hrs | D15: 0.3 mg/m3 | F15: 0.0409
A16: Dioxins & Furans (I-TEQ) | C16: 6-8hrs | D16: 0.06 ng/m3 | F16: 0.01895
A17: PCBs (WHO-TEQ Humans / Mammals) | C17: 6-8hrs | D17: None set ng/m3 | F17: 0.0006515
A18: PCBs (WHO-TEQ Fish) | C18: 6-8hrs | D18: None set ng/m3 | F18: 3.15e-05
A19: PCBs (WHO-TEQ Birds) | C19: 6-8hrs | D19: None set ng/m3 | F19: 0.001965
A20: Dioxins & Furans (WHO-TEQ Humans / Mammals) | C20: 6-8hrs | D20: None set ng/m3 | F20: 0.01705
A21: Dioxins & Furans (WHO-TEQ Fish) | C21: 6-8hrs | D21: None set ng/m3 | F21: 0.01885
A22: Dioxins & Furans (WHO-TEQ Birds) | C22: 6-8hrs | D22: None set ng/m3 | F22: 0.0291
A23: Anthanthrene | C23: 6-8hrs | D23: None set µg/m3 | F23: 0.0017
A24: Benzo(a)anthracene | C24: 6-8hrs | D24: None set µg/m3 | F24: 0.0017
A25: Benzo(a)pyrene | C25: 6-8hrs | D25: None set µg/m3 | F25: 0.0017
A26: Benzo(b)fluoranthene | C26: 6-8hrs | D26: None set µg/m3 | F26: 0.0017
A27: Benzo(b)naptho(2,1-d) thiophene | C27: 6-8hrs | D27: None set µg/m3 | F27: 0.0017
A28: Benzo(c)phenanthrene | C28: 6-8hrs | D28: None set µg/m3 | F28: 0.0017
A29: Benzo(ghi)perylene | C29: 6-8hrs | D29: None set µg/m3 | F29: 0.0017
A30: Benzo(k)fluoranthene | C30: 6-8hrs | D30: None set µg/m3 | F30: 0.0017
A31: Cholanthrene | C31: 6-8hrs | D31: None set µg/m3 | F31: 0.0017
A32: Chrysene | C32: 6-8hrs | D32: None set µg/m3 | F32: 0.0017
A33: Cyclopenta(cd)pyrene | C33: 6-8hrs | D33: None set µg/m3 | F33: 0.0017
A34: Dibenzo(ai)pyrene | C34: 6-8hrs | D34: None set µg/m3 | F34: 0.0017
A35: Dibenzo(ah)anthracene | C35: 6-8hrs | D35: None set µg/m3 | F35: 0.0017
A36: Fluoranthene | C36: 6-8hrs | D36: None set µg/m3 | F36: 0.042
A37: Indeno(123-cd) pyrene | C37: 6-8hrs | D37: None set µg/m3 | F37: 0.0017
A38: Naphthalene | C38: 6-8hrs | D38: None set µg/m3 | F38: 0.1
A39: Comments :

Sheet Air (CEMS)
A1: =+'Cover Page'!$B$29 -> Annual Performance Report 2024 | I1: =+'Cover Page'!$B$33 -> SUEZ R&R Kirklees EfW
A3: Emissions to Air (continuously monitored)
N4: Notes:
A5: Summary of monitoring undertaken, standards used and compliance | N5: Template may require adjustment for any bespoke monitoring requirements of permit
N6: Please check that all default ELV values match those for your plant and edit if necessary!
N7: Report to 1 decimal place
A11: Results of emissions to air that are continuously monitored (maximum and average values for each line) - oxygen reference 11%
A12: Substance | B12: Reference Period | C12: Emission Limit Value | D12: A1 | F12: A2 | H12: A3 | J12: A4 | L12: A5
D13: Max. | E13: Avg. | F13: Max. | G13: Avg. | H13: Max. | I13: Avg. | J13: Max. | K13: Avg. | L13: Max. | M13: Avg.
A14: Oxides of nitrogen | B14: Daily mean | C14: 180 mg/m3 | D14: =NOx!$O$19 -> 163 | E14: =NOx!$N$19 -> 145.875 | F14: =NOx!$O$34 -> 0 | G14: =NOx!$N$34 ->  | H14: =NOx!$O$49 -> 0 | I14: =NOx!$N$49 ->  | J14: =NOx!$O$64 -> 0 | K14: =NOx!$N$64 ->  | L14: =NOx!$O$79 -> 0 | M14: =NOx!$N$79 -> 
B15: ½ hourly mean | C15: 400 mg/m3 | D15: =NOx!$M$19 -> 202 | E15: =NOx!$L$19 -> 145.875 | F15: =NOx!$M$34 -> 0 | G15: =NOx!$L$34 ->  | H15: =NOx!$M$49 -> 0 | I15: =NOx!$L$49 ->  | J15: =NOx!$M$64 -> 0 | K15: =NOx!$L$64 ->  | L15: =NOx!$M$79 -> 0 | M15: =NOx!$L$79 -> 
A16: Particulates | B16: Daily mean | C16: 5 mg/m3 | D16: =Particulates!$O$19 -> 3.3 | E16: =Particulates!$N$19 -> 1.775 | F16: =Particulates!$O$34 -> 0 | G16: =Particulates!$N$34 ->  | H16: =Particulates!$O$49 -> 0 | I16: =Particulates!$N$49 ->  | J16: =Particulates!$O$64 -> 0 | K16: =Particulates!$N$64 ->  | L16: =Particulates!$O$79 -> 0 | M16: =Particulates!$N$79 -> 
B17: ½ hourly mean | C17: 30 mg/m3 | D17: =Particulates!$M$19 -> 14.3 | E17: =Particulates!$L$19 -> 1.775 | F17: =Particulates!$M$34 -> 0 | G17: =Particulates!$L$34 ->  | H17: =Particulates!$M$49 -> 0 | I17: =Particulates!$L$49 ->  | J17: =Particulates!$M$64 -> 0 | K17: =Particulates!$L$64 ->  | L17: =Particulates!$M$79 -> 0 | M17: =Particulates!$L$79 -> 
A18: Total Organic Carbon | B18: Daily mean | C18: 10 mg/m3 | D18: =TOC!$O$19 -> 0.9 | E18: =TOC!$N$19 -> 0.3 | F18: =TOC!$O$34 -> 0 | G18: =TOC!$N$34 ->  | H18: =TOC!$O$49 -> 0 | I18: =TOC!$N$49 ->  | J18: =TOC!$O$64 -> 0 | K18: =TOC!$N$64 ->  | L18: =TOC!$O$79 -> 0 | M18: =TOC!$N$79 -> 
B19: ½ hourly mean | C19: 20 mg/m3 | D19: =TOC!$M$19 -> 9.5 | E19: =TOC!$L$19 -> 0.3 | F19: =TOC!$M$34 -> 0 | G19: =TOC!$L$34 ->  | H19: =TOC!$M$49 -> 0 | I19: =TOC!$L$49 ->  | J19: =TOC!$M$64 -> 0 | K19: =TOC!$L$64 ->  | L19: =TOC!$M$79 -> 0 | M19: =TOC!$L$79 -> 
A20: Hydrogen chloride | B20: Daily mean | C20: 8 mg/m3 | D20: =HCl!$O$19 -> 6.2 | E20: =HCl!$N$19 -> 2.291666667 | F20: =HCl!$O$34 -> 0 | G20: =HCl!$N$34 ->  | H20: =HCl!$O$49 -> 0 | I20: =HCl!$N$49 ->  | J20: =HCl!$O$64 -> 0 | K20: =HCl!$N$64 ->  | L20: =HCl!$O$79 -> 0 | M20: =HCl!$N$79 -> 
B21: ½ hourly mean | C21: 60 mg/m3 | D21: =HCl!$M$19 -> 46 | E21: =HCl!$L$19 -> 2.291666667 | F21: =HCl!$M$34 -> 0 | G21: =HCl!$L$34 ->  | H21: =HCl!$M$49 -> 0 | I21: =HCl!$L$49 ->  | J21: =HCl!$M$64 -> 0 | K21: =HCl!$L$64 ->  | L21: =HCl!$M$79 -> 0 | M21: =HCl!$L$79 -> 
A22: Sulphur dioxide | B22: Daily mean | C22: 40 mg/m3 | D22: ='SO2'!$O$19 -> 35 | E22: ='SO2'!$N$19 -> 11.14166667 | F22: ='SO2'!$O$34 -> 0 | G22: ='SO2'!$N$34 ->  | H22: ='SO2'!$O$49 -> 0 | I22: ='SO2'!$N$49 ->  | J22: ='SO2'!$O$64 -> 0 | K22: ='SO2'!$N$64 ->  | L22: ='SO2'!$O$79 -> 0 | M22: ='SO2'!$N$79 -> 
B23: ½ hourly mean | C23: 200 mg/m3 | D23: ='SO2'!$M$19 -> 168.2 | E23: ='SO2'!$L$19 -> 11.14166667 | F23: ='SO2'!$M$34 -> 0 | G23: ='SO2'!$L$34 ->  | H23: ='SO2'!$M$49 -> 0 | I23: ='SO2'!$L$49 ->  | J23: ='SO2'!$M$64 -> 0 | K23: ='SO2'!$L$64 ->  | L23: ='SO2'!$M$79 -> 0 | M23: ='SO2'!$L$79 -> 
A24: Carbon monoxide | B24: Daily mean | C24: 50 mg/m3 | D24: ='CO 95% 10 min'!Q2 -> 0 | E24: ='CO 95% 10 min'!P22 -> 29.13333333 | F24: ='CO 95% 10 min'!Q37 -> 0 | G24: ='CO 95% 10 min'!P37 ->  | H24: ='CO 95% 10 min'!Q52 -> 0 | I24: ='CO 95% 10 min'!P52 ->  | J24: ='CO 95% 10 min'!Q67 -> 0 | K24: ='CO 95% 10 min'!P67 ->  | L24: ='CO 95% 10 min'!Q82 -> 0 | M24: ='CO 95% 10 min'!P82 -> 
B25: ½ hourly mean * | C25: 100 mg/m3 *
B26: 95%ile 10-min avg * | C26: 150 mg/m3 * | D26: ='CO 95% 10 min'!M22 -> 96.15 | F26: ='CO 95% 10 min'!M37 ->  | H26: ='CO 95% 10 min'!M52 ->  | J26: ='CO 95% 10 min'!M67 ->  | L26: ='CO 95% 10 min'!M82 -> 
A27: Ammonia | B27: Daily mean | C27: 15 mg/m3 | D27: ='NH3'!$O$19 -> 4.4 | E27: ='NH3'!$N$19 -> 0.7583333333 | F27: ='NH3'!$O$34 -> 0 | G27: ='NH3'!$N$34 ->  | H27: ='NH3'!$O$49 -> 0 | I27: ='NH3'!$N$49 ->  | J27: ='NH3'!$O$64 -> 0 | K27: ='NH3'!$N$64 ->  | L27: ='NH3'!$O$79 -> 0 | M27: ='NH3'!$N$79 -> 
A28: * = delete as appropriate, depending on whether your plant has half-hourly or 10-min CO ELVs
A29: Comments :

Sheet HCl
A1: =+'Cover Page'!$B$29 -> Annual Performance Report 2024 | E1: =+'Cover Page'!$B$33 -> SUEZ R&R Kirklees EfW
A3: Monitoring of Hydrogen Chloride emissions | D3: Whole Installation | G3: See Notes in Cell Q3 | J3: =+A3 -> Monitoring of Hydrogen Chloride emissions | N3: Per Combustion Line | Q3: Notes:
Q4: User to add logic to complete Whole installation, Table A5:G18. From the data in Per Combustion Line, Table J6:O79, subject to No. of lines installed
A5: =+'Cover Page'!C39 -> 2024 | B5: 1/2 Hourly Reference Periods | E5: Daily Reference Periods
A6: mg/Nm3 | B6: 1/2 hourly HCl ELV | C6: Monthly mean of half-hourly averages | D6: Highest half- hourly average | E6: Daily HCl ELV | F6: Monthly mean of daily averages | G6: Highest daily average | J6: =+A5 -> 2024 | K6: mg/Nm3 | L6: Monthly mean of half-hourly averages | M6: Highest half- hourly average | N6: Monthly mean of daily averages | O6: Highest daily average
A7: Jan | B7: 60 | C7: =AVERAGE(L7,L22,L37,L52,L67) -> 2.3 | D7: =MAX(M7,M22,M37,M52,M67) -> 12.8 | E7: 8 | F7: =AVERAGE(N7,N22,N37,N52,N67) -> 2.3 | G7: =MAX(O7,O22,O37,O52,O67) -> 3.1 | J7: A1 | K7: Jan | L7: 2.3 | M7: 12.8 | N7: 2.3 | O7: 3.1
A8: Feb | B8: 60 | C8: =AVERAGE(L8,L23,L38,L53,L68) -> 2.6 | D8: =MAX(M8,M23,M38,M53,M68) -> 34.6 | E8: 8 | F8: =AVERAGE(N8,N23,N38,N53,N68) -> 2.6 | G8: =MAX(O8,O23,O38,O53,O68) -> 3.5 | K8: Feb | L8: 2.6 | M8: 34.6 | N8: 2.6 | O8: 3.5
A9: Mar | B9: 60 | C9: 2.7 | D9: 46 | E9: 8 | F9: 2.7 | G9: 4.1 | K9: Mar | L9: 2.7 | M9: 46 | N9: 2.7 | O9: 4.1 | Q9: Whole Installation table A5:G18:
A10: Apr | B10: 60 | C10: 1.4 | D10: 3.5 | E10: 8 | F10: 1.4 | G10: 1.7 | K10: Apr | L10: 1.4 | M10: 3.5 | N10: 1.4 | O10: 1.7 | Q10: Mean: for 1/2 hourly and daily periods calculate mean of values across all operational combustion lines for the month
A11: May | B11: 60 | C11: 2.3 | D11: 9 | E11: 8 | F11: 2.3 | G11: 3.5 | K11: May | L11: 2.3 | M11: 9 | N11: 2.3 | O11: 3.5
A12: Jun | B12: 60 | C12: 2.3 | D12: 7.5 | E12: 8 | F12: 2.3 | G12: 3.3 | K12: Jun | L12: 2.3 | M12: 7.5 | N12: 2.3 | O12: 3.3
A13: Jul | B13: 60 | C13: 2.5 | D13: 17 | E13: 8 | F13: 2.5 | G13: 3.8 | K13: Jul | L13: 2.5 | M13: 17 | N13: 2.5 | O13: 3.8 | Q13: Maximum: for 1/2 hourly and daily periods use the highest value across all operational combustion lines for the month
A14: Aug | B14: 60 | C14: 2.5 | D14: 16 | E14: 8 | F14: 2.5 | G14: 4.5 | K14: Aug | L14: 2.5 | M14: 16 | N14: 2.5 | O14: 4.5
A15: Sep | B15: 60 | C15: 2.2 | D15: 6 | E15: 8 | F15: 2.2 | G15: 2.7 | K15: Sep | L15: 2.2 | M15: 6 | N15: 2.2 | O15: 2.7
A16: Oct | B16: 60 | C16: 2.2 | D16: 13.6 | E16: 8 | F16: 2.2 | G16: 3 | K16: Oct | L16: 2.2 | M16: 13.6 | N16: 2.2 | O16: 3
A17: Nov | B17: 60 | C17: 2.2 | D17: 16 | E17: 8 | F17: 2.2 | G17: 6.2 | K17: Nov | L17: 2.2 | M17: 16 | N17: 2.2 | O17: 6.2
A18: Dec | B18: 60 | C18: 2.3 | D18: 12.1 | E18: 8 | F18: 2.3 | G18: 3 | K18: Dec | L18: 2.3 | M18: 12.1 | N18: 2.3 | O18: 3
K19: Annual | L19: =AVERAGE(L7:L18) -> 2.291666667 | M19: =MAX(M7:M18) -> 46 | N19: =AVERAGE(N7:N18) -> 2.291666667 | O19: =MAX(O7:O18) -> 6.2
J21: =+A5 -> 2024 | K21: mg/Nm3 | L21: Monthly mean of half-hourly averages | M21: Highest half- hourly average | N21: Monthly mean of daily averages | O21: Highest daily average
J22: A2 | K22: Jan
K23: Feb
K24: Mar
K25: Apr
K26: May
K27: Jun
K28: Jul
K29: Aug
K30: Sep
K31: Oct
K32: Nov
K33: Dec
K34: Annual | L34: =AVERAGE(L22:L33) ->  | M34: =MAX(M22:M33) -> 0 | N34: =AVERAGE(N22:N33) ->  | O34: =MAX(O22:O33) -> 0
J36: =+A5 -> 2024 | K36: mg/Nm3 | L36: Monthly mean of half-hourly averages | M36: Highest half- hourly average | N36: Monthly mean of daily averages | O36: Highest daily average
J37: A3 | K37: Jan
K38: Feb
K39: Mar
K40: Apr
K41: May
K42: Jun
K43: Jul
K44: Aug
K45: Sep
K46: Oct
K47: Nov
A48: Comments : | K48: Dec
K49: Annual | L49: =AVERAGE(L37:L48) ->  | M49: =MAX(M37:M48) -> 0 | N49: =AVERAGE(N37:N48) ->  | O49: =MAX(O37:O48) -> 0
J51: =+A5 -> 2024 | K51: mg/Nm3 | L51: Monthly mean of half-hourly averages | M51: Highest half- hourly average | N51: Monthly mean of daily averages | O51: Highest daily average
J52: A4 | K52: Jan
K53: Feb
K54: Mar
K55: Apr
K56: May
K57: Jun
K58: Jul
K59: Aug
K60: Sep
K61: Oct
K62: Nov
K63: Dec
K64: Annual | L64: =AVERAGE(L52:L63) ->  | M64: =MAX(M52:M63) -> 0 | N64: =AVERAGE(N52:N63) ->  | O64: =MAX(O52:O63) -> 0
J66: =+A5 -> 2024 | K66: mg/Nm3 | L66: Monthly mean of half-hourly averages | M66: Highest half- hourly average | N66: Monthly mean of daily averages | O66: Highest daily average
J67: A5 | K67: Jan
K68: Feb
K69: Mar
K70: Apr
K71: May
K72: Jun
K73: Jul
K74: Aug
K75: Sep
K76: Oct
K77: Nov
K78: Dec
K79: Annual | L79: =AVERAGE(L67:L78) ->  | M79: =MAX(M67:M78) -> 0 | N79: =AVERAGE(N67:N78) ->  | O79: =MAX(O67:O78) -> 0

Sheet SO2
A1: =+'Cover Page'!$B$29 -> Annual Performance Report 2024 | E1: =+'Cover Page'!$B$33 -> SUEZ R&R Kirklees EfW
A3: Monitoring of Sulphur dioxide emissions | D3: Whole Installation | G3: See Notes in Cell Q3 | J3: =+A3 -> Monitoring of Sulphur dioxide emissions | N3: Per Combustion Line | Q3: Notes:
Q4: User to add logic to complete Whole installation, Table A5:G18. From the data in Per Combustion Line, Table J6:O79, subject to No. of lines installed
A5: =+'Cover Page'!C39 -> 2024 | B5: 1/2 Hourly Reference Periods | E5: Daily Reference Periods
A6: mg/Nm3 | B6: 1/2 hourly SO2 ELV | C6: Monthly mean of half-hourly averages | D6: Highest half- hourly average | E6: Daily SO2 ELV | F6: Monthly mean of daily averages | G6: Highest daily average | J6: =+A5 -> 2024 | K6: mg/Nm3 | L6: Monthly mean of half-hourly averages | M6: Highest half- hourly average | N6: Monthly mean of daily averages | O6: Highest daily average
A7: Jan | B7: 200 | C7: =AVERAGE(L7,L22,L37,L52,L67) -> 7.9 | D7: =MAX(M7,M22,M37,M52,M67) -> 106.3 | E7: 40 | F7: =AVERAGE(N7,N22,N37,N52,N67) -> 7.9 | G7: =MAX(O7,O22,O37,O52,O67) -> 11.7 | J7: A1 | K7: Jan | L7: 7.9 | M7: 106.3 | N7: 7.9 | O7: 11.7
A8: Feb | B8: 200 | C8: =AVERAGE(L8,L23,L38,L53,L68) -> 8.8 | D8: =MAX(M8,M23,M38,M53,M68) -> 105 | E8: 40 | F8: =AVERAGE(N8,N23,N38,N53,N68) -> 8.8 | G8: =MAX(O8,O23,O38,O53,O68) -> 11.8 | K8: Feb | L8: 8.8 | M8: 105 | N8: 8.8 | O8: 11.8
A9: Mar | B9: 200 | C9: 7.8 | D9: 101 | E9: 40 | F9: 7.8 | G9: 10.3 | K9: Mar | L9: 7.8 | M9: 101 | N9: 7.8 | O9: 10.3 | Q9: Whole Installation table A5:G18:
A10: Apr | B10: 200 | C10: 27 | D10: 126 | E10: 40 | F10: 27 | G10: 34 | K10: Apr | L10: 27 | M10: 126 | N10: 27 | O10: 34 | Q10: Mean: for 1/2 hourly and daily periods calculate mean of values across all operational combustion lines for the month
A11: May | B11: 200 | C11: 15 | D11: 133 | E11: 40 | F11: 15 | G11: 32 | K11: May | L11: 15 | M11: 133 | N11: 15 | O11: 32
A12: Jun | B12: 200 | C12: 13 | D12: 71 | E12: 40 | F12: 13 | G12: 25 | K12: Jun | L12: 13 | M12: 71 | N12: 13 | O12: 25
A13: Jul | B13: 200 | C13: 11 | D13: 85 | E13: 40 | F13: 11 | G13: 16 | K13: Jul | L13: 11 | M13: 85 | N13: 11 | O13: 16 | Q13: Maximum: for 1/2 hourly and daily periods use the highest value across all operational combustion lines for the month
A14: Aug | B14: 200 | C14: 9 | D14: 66 | E14: 40 | F14: 9 | G14: 13 | K14: Aug | L14: 9 | M14: 66 | N14: 9 | O14: 13
A15: Sep | B15: 200 | C15: 7.2 | D15: 51 | E15: 40 | F15: 7.2 | G15: 11 | K15: Sep | L15: 7.2 | M15: 51 | N15: 7.2 | O15: 11
A16: Oct | B16: 200 | C16: 7.9 | D16: 89.6 | E16: 40 | F16: 7.9 | G16: 15 | K16: Oct | L16: 7.9 | M16: 89.6 | N16: 7.9 | O16: 15
A17: Nov | B17: 200 | C17: 10.1 | D17: 168.2 | E17: 40 | F17: 10.1 | G17: 35 | K17: Nov | L17: 10.1 | M17: 168.2 | N17: 10.1 | O17: 35
A18: Dec | B18: 200 | C18: 9 | D18: 58 | E18: 40 | F18: 9 | G18: 18.6 | K18: Dec | L18: 9 | M18: 58 | N18: 9 | O18: 18.6
K19: Annual | L19: =AVERAGE(L7:L18) -> 11.14166667 | M19: =MAX(M7:M18) -> 168.2 | N19: =AVERAGE(N7:N18) -> 11.14166667 | O19: =MAX(O7:O18) -> 35
J21: =+A5 -> 2024 | K21: mg/Nm3 | L21: Monthly mean of half-hourly averages | M21: Highest half- hourly average | N21: Monthly mean of daily averages | O21: Highest daily average
J22: A2 | K22: Jan
K23: Feb
K24: Mar
K25: Apr
K26: May
K27: Jun
K28: Jul
K29: Aug
K30: Sep
K31: Oct
K32: Nov
K33: Dec
K34: Annual | L34: =AVERAGE(L22:L33) ->  | M34: =MAX(M22:M33) -> 0 | N34: =AVERAGE(N22:N33) ->  | O34: =MAX(O22:O33) -> 0
J36: =+A5 -> 2024 | K36: mg/Nm3 | L36: Monthly mean of half-hourly averages | M36: Highest half- hourly average | N36: Monthly mean of daily averages | O36: Highest daily average
J37: A3 | K37: Jan
K38: Feb
K39: Mar
K40: Apr
K41: May
K42: Jun
K43: Jul
K44: Aug
K45: Sep
K46: Oct
K47: Nov
A48: Comments : | K48: Dec
K49: Annual | L49: =AVERAGE(L37:L48) ->  | M49: =MAX(M37:M48) -> 0 | N49: =AVERAGE(N37:N48) ->  | O49: =MAX(O37:O48) -> 0
J51: =+A5 -> 2024 | K51: mg/Nm3 | L51: Monthly mean of half-hourly averages | M51: Highest half- hourly average | N51: Monthly mean of daily averages | O51: Highest daily average
J52: A4 | K52: Jan
K53: Feb
K54: Mar
K55: Apr
K56: May
K57: Jun
K58: Jul
K59: Aug
K60: Sep
K61: Oct
K62: Nov
K63: Dec
K64: Annual | L64: =AVERAGE(L52:L63) ->  | M64: =MAX(M52:M63) -> 0 | N64: =AVERAGE(N52:N63) ->  | O64: =MAX(O52:O63) -> 0
J66: =+A5 -> 2024 | K66: mg/Nm3 | L66: Monthly mean of half-hourly averages | M66: Highest half- hourly average | N66: Monthly mean of daily averages | O66: Highest daily average
J67: A5 | K67: Jan
K68: Feb
K69: Mar
K70: Apr
K71: May
K72: Jun
K73: Jul
K74: Aug
K75: Sep
K76: Oct
K77: Nov
K78: Dec
K79: Annual | L79: =AVERAGE(L67:L78) ->  | M79: =MAX(M67:M78) -> 0 | N79: =AVERAGE(N67:N78) ->  | O79: =MAX(O67:O78) -> 0

Sheet NOx
A1: =+'Cover Page'!$B$29 -> Annual Performance Report 2024 | E1: =+'Cover Page'!$B$33 -> SUEZ R&R Kirklees EfW
A3: Monitoring of Oxides of Nitrogen emissions | D3: Whole Installation | G3: See Notes in Cell Q3 | J3: =+A3 -> Monitoring of Oxides of Nitrogen emissions | N3: Per Combustion Line | Q3: Notes:
Q4: User to add logic to complete Whole installation, Table A5:G18. From the data in Per Combustion Line, Table J6:O79, subject to No. of lines installed
A5: =+'Cover Page'!C39 -> 2024 | B5: 1/2 Hourly Reference Periods | E5: Daily Reference Periods
A6: mg/Nm3 | B6: 1/2 hourly NOx ELV | C6: Monthly mean of half-hourly averages | D6: Highest half- hourly average | E6: Daily NOx ELV | F6: Monthly mean of daily averages | G6: Highest daily average | J6: =+A5 -> 2024 | K6: mg/Nm3 | L6: Monthly mean of half-hourly averages | M6: Highest half- hourly average | N6: Monthly mean of daily averages | O6: Highest daily average
A7: Jan | B7: 400 | C7: =AVERAGE(L7,L22,L37,L52,L67) -> 134 | D7: =MAX(M7,M22,M37,M52,M67) -> 167 | E7: 180 | F7: =AVERAGE(N7,N22,N37,N52,N67) -> 134 | G7: =MAX(O7,O22,O37,O52,O67) -> 146 | J7: A1 | K7: Jan | L7: 134 | M7: 167 | N7: 134 | O7: 146
A8: Feb | B8: 400 | C8: =AVERAGE(L8,L23,L38,L53,L68) -> 131.7 | D8: =MAX(M8,M23,M38,M53,M68) -> 159.6 | E8: 180 | F8: =AVERAGE(N8,N23,N38,N53,N68) -> 131.7 | G8: =MAX(O8,O23,O38,O53,O68) -> 140 | K8: Feb | L8: 131.7 | M8: 159.6 | N8: 131.7 | O8: 140
A9: Mar | B9: 400 | C9: 137 | D9: 169 | E9: 180 | F9: 137 | G9: 143 | K9: Mar | L9: 137 | M9: 169 | N9: 137 | O9: 143 | Q9: Whole Installation table A5:G18:
A10: Apr | B10: 400 | C10: 144 | D10: 181 | E10: 180 | F10: 144 | G10: 149 | K10: Apr | L10: 144 | M10: 181 | N10: 144 | O10: 149 | Q10: Mean: for 1/2 hourly and daily periods calculate mean of values across all operational combustion lines for the month
A11: May | B11: 400 | C11: 147 | D11: 172 | E11: 180 | F11: 147 | G11: 152 | K11: May | L11: 147 | M11: 172 | N11: 147 | O11: 152
A12: Jun | B12: 400 | C12: 148 | D12: 171 | E12: 180 | F12: 148 | G12: 158.9 | K12: Jun | L12: 148 | M12: 171 | N12: 148 | O12: 158.9
A13: Jul | B13: 400 | C13: 152 | D13: 202 | E13: 180 | F13: 152 | G13: 163 | K13: Jul | L13: 152 | M13: 202 | N13: 152 | O13: 163 | Q13: Maximum: for 1/2 hourly and daily periods use the highest value across all operational combustion lines for the month
A14: Aug | B14: 400 | C14: 153 | D14: 178 | E14: 180 | F14: 153 | G14: 157 | K14: Aug | L14: 153 | M14: 178 | N14: 153 | O14: 157
A15: Sep | B15: 400 | C15: 153 | D15: 169 | E15: 180 | F15: 153 | G15: 155 | K15: Sep | L15: 153 | M15: 169 | N15: 153 | O15: 155
A16: Oct | B16: 400 | C16: 152 | D16: 176 | E16: 180 | F16: 152 | G16: 159 | K16: Oct | L16: 152 | M16: 176 | N16: 152 | O16: 159
A17: Nov | B17: 400 | C17: 150.2 | D17: 187.6 | E17: 180 | F17: 150.2 | G17: 155.2 | K17: Nov | L17: 150.2 | M17: 187.6 | N17: 150.2 | O17: 155.2
A18: Dec | B18: 400 | C18: 148.6 | D18: 176.8 | E18: 180 | F18: 148.6 | G18: 153.6 | K18: Dec | L18: 148.6 | M18: 176.8 | N18: 148.6 | O18: 153.6
K19: Annual | L19: =AVERAGE(L7:L18) -> 145.875 | M19: =MAX(M7:M18) -> 202 | N19: =AVERAGE(N7:N18) -> 145.875 | O19: =MAX(O7:O18) -> 163
J21: =+A5 -> 2024 | K21: mg/Nm3 | L21: Monthly mean of half-hourly averages | M21: Highest half- hourly average | N21: Monthly mean of daily averages | O21: Highest daily average
J22: A2 | K22: Jan
K23: Feb
K24: Mar
K25: Apr
K26: May
K27: Jun
K28: Jul
K29: Aug
K30: Sep
K31: Oct
K32: Nov
K33: Dec
K34: Annual | L34: =AVERAGE(L22:L33) ->  | M34: =MAX(M22:M33) -> 0 | N34: =AVERAGE(N22:N33) ->  | O34: =MAX(O22:O33) -> 0
J36: =+A5 -> 2024 | K36: mg/Nm3 | L36: Monthly mean of half-hourly averages | M36: Highest half- hourly average | N36: Monthly mean of daily averages | O36: Highest daily average
J37: A3 | K37: Jan
K38: Feb
K39: Mar
K40: Apr
K41: May
K42: Jun
K43: Jul
K44: Aug
K45: Sep
K46: Oct
K47: Nov
A48: Comments : | K48: Dec
K49: Annual | L49: =AVERAGE(L37:L48) ->  | M49: =MAX(M37:M48) -> 0 | N49: =AVERAGE(N37:N48) ->  | O49: =MAX(O37:O48) -> 0
J51: =+A5 -> 2024 | K51: mg/Nm3 | L51: Monthly mean of half-hourly averages | M51: Highest half- hourly average | N51: Monthly mean of daily averages | O51: Highest daily average
J52: A4 | K52: Jan
K53: Feb
K54: Mar
K55: Apr
K56: May
K57: Jun
K58: Jul
K59: Aug
K60: Sep
K61: Oct
K62: Nov
K63: Dec
K64: Annual | L64: =AVERAGE(L52:L63) ->  | M64: =MAX(M52:M63) -> 0 | N64: =AVERAGE(N52:N63) ->  | O64: =MAX(O52:O63) -> 0
J66: =+A5 -> 2024 | K66: mg/Nm3 | L66: Monthly mean of half-hourly averages | M66: Highest half- hourly average | N66: Monthly mean of daily averages | O66: Highest daily average
J67: A5 | K67: Jan
K68: Feb
K69: Mar
K70: Apr
K71: May
K72: Jun
K73: Jul
K74: Aug
K75: Sep
K76: Oct
K77: Nov
K78: Dec
K79: Annual | L79: =AVERAGE(L67:L78) ->  | M79: =MAX(M67:M78) -> 0 | N79: =AVERAGE(N67:N78) ->  | O79: =MAX(O67:O78) -> 0

Sheet TOC
A1: =+'Cover Page'!$B$29 -> Annual Performance Report 2024 | E1: =+'Cover Page'!$B$33 -> SUEZ R&R Kirklees EfW
A3: Monitoring of Total organic carbon emissions | D3: Whole Installation | G3: See Notes in Cell Q3 | J3: =+A3 -> Monitoring of Total organic carbon emissions | N3: Per Combustion Line | Q3: Notes:
Q4: User to add logic to complete Whole installation, Table A5:G18. From the data in Per Combustion Line, Table J6:O79, subject to No. of lines installed
A5: =+'Cover Page'!C39 -> 2024 | B5: 1/2 Hourly Reference Periods | E5: Daily Reference Periods
A6: mg/Nm3 | B6: 1/2 hourly TOC ELV | C6: Monthly mean of half-hourly averages | D6: Highest half- hourly average | E6: Daily TOC ELV | F6: Monthly mean of daily averages | G6: Highest daily average | J6: =+A5 -> 2024 | K6: mg/Nm3 | L6: Monthly mean of half-hourly averages | M6: Highest half- hourly average | N6: Monthly mean of daily averages | O6: Highest daily average
A7: Jan | B7: 20 | C7: =AVERAGE(L7,L22,L37,L52,L67) -> 0.2 | D7: =MAX(M7,M22,M37,M52,M67) -> 5.9 | E7: 10 | F7: =AVERAGE(N7,N22,N37,N52,N67) -> 0.2 | G7: =MAX(O7,O22,O37,O52,O67) -> 0.4 | J7: A1 | K7: Jan | L7: 0.2 | M7: 5.9 | N7: 0.2 | O7: 0.4
A8: Feb | B8: 20 | C8: =AVERAGE(L8,L23,L38,L53,L68) -> 0.2 | D8: =MAX(M8,M23,M38,M53,M68) -> 6 | E8: 10 | F8: =AVERAGE(N8,N23,N38,N53,N68) -> 0.2 | G8: =MAX(O8,O23,O38,O53,O68) -> 0.4 | K8: Feb | L8: 0.2 | M8: 6 | N8: 0.2 | O8: 0.4
A9: Mar | B9: 20 | C9: 0.2 | D9: 6.6 | E9: 10 | F9: 0.2 | G9: 0.3 | K9: Mar | L9: 0.2 | M9: 6.6 | N9: 0.2 | O9: 0.3 | Q9: Whole Installation table A5:G18:
A10: Apr | B10: 20 | C10: 0.5 | D10: 4.2 | E10: 10 | F10: 0.5 | G10: 0.8 | K10: Apr | L10: 0.5 | M10: 4.2 | N10: 0.5 | O10: 0.8 | Q10: Mean: for 1/2 hourly and daily periods calculate mean of values across all operational combustion lines for the month
A11: May | B11: 20 | C11: 0.4 | D11: 6.6 | E11: 10 | F11: 0.4 | G11: 0.7 | K11: May | L11: 0.4 | M11: 6.6 | N11: 0.4 | O11: 0.7
A12: Jun | B12: 20 | C12: 0.4 | D12: 7.7 | E12: 10 | F12: 0.4 | G12: 0.7 | K12: Jun | L12: 0.4 | M12: 7.7 | N12: 0.4 | O12: 0.7
A13: Jul | B13: 20 | C13: 0.4 | D13: 9.2 | E13: 10 | F13: 0.4 | G13: 0.6 | K13: Jul | L13: 0.4 | M13: 9.2 | N13: 0.4 | O13: 0.6 | Q13: Maximum: for 1/2 hourly and daily periods use the highest value across all operational combustion lines for the month
A14: Aug | B14: 20 | C14: 0.3 | D14: 8 | E14: 10 | F14: 0.3 | G14: 0.9 | K14: Aug | L14: 0.3 | M14: 8 | N14: 0.3 | O14: 0.9
A15: Sep | B15: 20 | C15: 0.2 | D15: 7.7 | E15: 10 | F15: 0.2 | G15: 0.5 | K15: Sep | L15: 0.2 | M15: 7.7 | N15: 0.2 | O15: 0.5
A16: Oct | B16: 20 | C16: 0.2 | D16: 9.5 | E16: 10 | F16: 0.2 | G16: 0.4 | K16: Oct | L16: 0.2 | M16: 9.5 | N16: 0.2 | O16: 0.4
A17: Nov | B17: 20 | C17: 0.3 | D17: 8.2 | E17: 10 | F17: 0.3 | G17: 0.5 | K17: Nov | L17: 0.3 | M17: 8.2 | N17: 0.3 | O17: 0.5
A18: Dec | B18: 20 | C18: 0.3 | D18: 7.6 | E18: 10 | F18: 0.3 | G18: 0.6 | K18: Dec | L18: 0.3 | M18: 7.6 | N18: 0.3 | O18: 0.6
K19: Annual | L19: =AVERAGE(L7:L18) -> 0.3 | M19: =MAX(M7:M18) -> 9.5 | N19: =AVERAGE(N7:N18) -> 0.3 | O19: =MAX(O7:O18) -> 0.9
J21: =+A5 -> 2024 | K21: mg/Nm3 | L21: Monthly mean of half-hourly averages | M21: Highest half- hourly average | N21: Monthly mean of daily averages | O21: Highest daily average
J22: A2 | K22: Jan
K23: Feb
K24: Mar
K25: Apr
K26: May
K27: Jun
K28: Jul
K29: Aug
K30: Sep
K31: Oct
K32: Nov
K33: Dec
K34: Annual | L34: =AVERAGE(L22:L33) ->  | M34: =MAX(M22:M33) -> 0 | N34: =AVERAGE(N22:N33) ->  | O34: =MAX(O22:O33) -> 0
J36: =+A5 -> 2024 | K36: mg/Nm3 | L36: Monthly mean of half-hourly averages | M36: Highest half- hourly average | N36: Monthly mean of daily averages | O36: Highest daily average
J37: A3 | K37: Jan
K38: Feb
K39: Mar
K40: Apr
K41: May
K42: Jun
K43: Jul
K44: Aug
K45: Sep
K46: Oct
K47: Nov
A48: Comments : | K48: Dec
K49: Annual | L49: =AVERAGE(L37:L48) ->  | M49: =MAX(M37:M48) -> 0 | N49: =AVERAGE(N37:N48) ->  | O49: =MAX(O37:O48) -> 0
J51: =+A5 -> 2024 | K51: mg/Nm3 | L51: Monthly mean of half-hourly averages | M51: Highest half- hourly average | N51: Monthly mean of daily averages | O51: Highest daily average
J52: A4 | K52: Jan
K53: Feb
K54: Mar
K55: Apr
K56: May
K57: Jun
K58: Jul
K59: Aug
K60: Sep
K61: Oct
K62: Nov
K63: Dec
K64: Annual | L64: =AVERAGE(L52:L63) ->  | M64: =MAX(M52:M63) -> 0 | N64: =AVERAGE(N52:N63) ->  | O64: =MAX(O52:O63) -> 0
J66: =+A5 -> 2024 | K66: mg/Nm3 | L66: Monthly mean of half-hourly averages | M66: Highest half- hourly average | N66: Monthly mean of daily averages | O66: Highest daily average
J67: A5 | K67: Jan
K68: Feb
K69: Mar
K70: Apr
K71: May
K72: Jun
K73: Jul
K74: Aug
K75: Sep
K76: Oct
K77: Nov
K78: Dec
K79: Annual | L79: =AVERAGE(L67:L78) ->  | M79: =MAX(M67:M78) -> 0 | N79: =AVERAGE(N67:N78) ->  | O79: =MAX(O67:O78) -> 0

Sheet Particulates
A1: =+'Cover Page'!$B$29 -> Annual Performance Report 2024 | E1: =+'Cover Page'!$B$33 -> SUEZ R&R Kirklees EfW
A3: Monitoring of Particulate matter emissions | D3: Whole Installation | G3: See Notes in Cell Q3 | J3: =+A3 -> Monitoring of Particulate matter emissions | N3: Per Combustion Line | Q3: Notes:
A5: =+'Cover Page'!C39 -> 2024 | B5: 1/2 Hourly Reference Periods | E5: Daily Reference Periods | Q5: User to add logic to complete Whole installation, Table A5:G18. From the data in Per Combustion Line, Table J6:O79, subject to No. of lines installed
A6: mg/Nm3 | B6: 1/2 hourly PM ELV | C6: Monthly mean of half-hourly averages | D6: Highest half- hourly average | E6: Daily PM ELV | F6: Monthly mean of daily averages | G6: Highest daily average | J6: =+A5 -> 2024 | K6: mg/Nm3 | L6: Monthly mean of half-hourly averages | M6: Highest half- hourly average | N6: Monthly mean of daily averages | O6: Highest daily average
A7: Jan | B7: 30 | C7: =AVERAGE(L7,L22,L37,L52,L67) -> 1 | D7: =MAX(M7,M22,M37,M52,M67) -> 2.4 | E7: 5 | F7: =AVERAGE(N7,N22,N37,N52,N67) -> 1 | G7: =MAX(O7,O22,O37,O52,O67) -> 1.2 | J7: A1 | K7: Jan | L7: 1 | M7: 2.4 | N7: 1 | O7: 1.2
A8: Feb | B8: 30 | C8: =AVERAGE(L8,L23,L38,L53,L68) -> 1.1 | D8: =MAX(M8,M23,M38,M53,M68) -> 2.8 | E8: 5 | F8: =AVERAGE(N8,N23,N38,N53,N68) -> 1.1 | G8: =MAX(O8,O23,O38,O53,O68) -> 1.5 | K8: Feb | L8: 1.1 | M8: 2.8 | N8: 1.1 | O8: 1.5
A9: Mar | B9: 30 | C9: 1.5 | D9: 3 | E9: 5 | F9: 1.5 | G9: 2 | K9: Mar | L9: 1.5 | M9: 3 | N9: 1.5 | O9: 2
A10: Apr | B10: 30 | C10: 1.3 | D10: 14.3 | E10: 5 | F10: 1.3 | G10: 2.2 | K10: Apr | L10: 1.3 | M10: 14.3 | N10: 1.3 | O10: 2.2 | Q10: Whole Installation table A5:G18:
A11: May | B11: 30 | C11: 0.9 | D11: 3.1 | E11: 5 | F11: 0.9 | G11: 1.4 | K11: May | L11: 0.9 | M11: 3.1 | N11: 0.9 | O11: 1.4 | Q11: Mean: for 1/2 hourly and daily periods calculate mean of values across all operational combustion lines for the month
A12: Jun | B12: 30 | C12: 1.4 | D12: 3.6 | E12: 5 | F12: 1.4 | G12: 2.5 | K12: Jun | L12: 1.4 | M12: 3.6 | N12: 1.4 | O12: 2.5
A13: Jul | B13: 30 | C13: 2.2 | D13: 7.2 | E13: 5 | F13: 2.2 | G13: 2.4 | K13: Jul | L13: 2.2 | M13: 7.2 | N13: 2.2 | O13: 2.4
A14: Aug | B14: 30 | C14: 2.1 | D14: 3.4 | E14: 5 | F14: 2.1 | G14: 2.8 | K14: Aug | L14: 2.1 | M14: 3.4 | N14: 2.1 | O14: 2.8 | Q14: Maximum: for 1/2 hourly and daily periods use the highest value across all operational combustion lines for the month
A15: Sep | B15: 30 | C15: 2 | D15: 2.7 | E15: 5 | F15: 2 | G15: 2.1 | K15: Sep | L15: 2 | M15: 2.7 | N15: 2 | O15: 2.1
A16: Oct | B16: 30 | C16: 2.2 | D16: 4.2 | E16: 5 | F16: 2.2 | G16: 2.5 | K16: Oct | L16: 2.2 | M16: 4.2 | N16: 2.2 | O16: 2.5
A17: Nov | B17: 30 | C17: 2.6 | D17: 4.1 | E17: 5 | F17: 2.6 | G17: 3.2 | K17: Nov | L17: 2.6 | M17: 4.1 | N17: 2.6 | O17: 3.2
A18: Dec | B18: 30 | C18: 3 | D18: 5.8 | E18: 5 | F18: 3 | G18: 3.3 | K18: Dec | L18: 3 | M18: 5.8 | N18: 3 | O18: 3.3
K19: Annual | L19: =AVERAGE(L7:L18) -> 1.775 | M19: =MAX(M7:M18) -> 14.3 | N19: =AVERAGE(N7:N18) -> 1.775 | O19: =MAX(O7:O18) -> 3.3
J21: =+A5 -> 2024 | K21: mg/Nm3 | L21: Monthly mean of half-hourly averages | M21: Highest half- hourly average | N21: Monthly mean of daily averages | O21: Highest daily average
J22: A2 | K22: Jan
K23: Feb
K24: Mar
K25: Apr
K26: May
K27: Jun
K28: Jul
K29: Aug
K30: Sep
K31: Oct
K32: Nov
K33: Dec
K34: Annual | L34: =AVERAGE(L22:L33) ->  | M34: =MAX(M22:M33) -> 0 | N34: =AVERAGE(N22:N33) ->  | O34: =MAX(O22:O33) -> 0
J36: =+A5 -> 2024 | K36: mg/Nm3 | L36: Monthly mean of half-hourly averages | M36: Highest half- hourly average | N36: Monthly mean of daily averages | O36: Highest daily average
J37: A3 | K37: Jan
K38: Feb
K39: Mar
K40: Apr
K41: May
K42: Jun
K43: Jul
K44: Aug
K45: Sep
K46: Oct
K47: Nov
A48: Comments : | K48: Dec
K49: Annual | L49: =AVERAGE(L37:L48) ->  | M49: =MAX(M37:M48) -> 0 | N49: =AVERAGE(N37:N48) ->  | O49: =MAX(O37:O48) -> 0
J51: =+A5 -> 2024 | K51: mg/Nm3 | L51: Monthly mean of half-hourly averages | M51: Highest half- hourly average | N51: Monthly mean of daily averages | O51: Highest daily average
J52: A4 | K52: Jan
K53: Feb
K54: Mar
K55: Apr
K56: May
K57: Jun
K58: Jul
K59: Aug
K60: Sep
K61: Oct
K62: Nov
K63: Dec
K64: Annual | L64: =AVERAGE(L52:L63) ->  | M64: =MAX(M52:M63) -> 0 | N64: =AVERAGE(N52:N63) ->  | O64: =MAX(O52:O63) -> 0
J66: =+A5 -> 2024 | K66: mg/Nm3 | L66: Monthly mean of half-hourly averages | M66: Highest half- hourly average | N66: Monthly mean of daily averages | O66: Highest daily average
J67: A5 | K67: Jan
K68: Feb
K69: Mar
K70: Apr
K71: May
K72: Jun
K73: Jul
K74: Aug
K75: Sep
K76: Oct
K77: Nov
K78: Dec
K79: Annual | L79: =AVERAGE(L67:L78) ->  | M79: =MAX(M67:M78) -> 0 | N79: =AVERAGE(N67:N78) ->  | O79: =MAX(O67:O78) -> 0

Sheet CO 0.5 hourly
A1: =+'Cover Page'!$B$29 -> Annual Performance Report 2024 | E1: =+'Cover Page'!$B$33 -> SUEZ R&R Kirklees EfW
A3: Monitoring of Carbon Monoxide (half hourly) | D3: Whole Installation | G3: See Notes in Cell Q3 | J3: =+A3 -> Monitoring of Carbon Monoxide (half hourly) | N3: Per Combustion Line | Q3: Notes:
A5: Please complete this tab for your plant if you have 1/2 hourly CO ELVs; otherwise, leave it blank and complete the CO 95% 10 min tab
Q7: User to add logic to complete Whole installation, Table A5:G18. From the data in Per Combustion Line, Table J6:O79, subject to No. of lines installed
A8: =+'Cover Page'!C39 -> 2024 | B8: 1/2 Hourly Reference Periods | E8: Daily Reference Periods
A9: mg/Nm3 | B9: 1/2 hourly CO ELV | C9: Monthly mean of half-hourly averages | D9: Highest half- hourly average | E9: Daily CO ELV | F9: Monthly mean of daily averages | G9: Highest daily average | J9: =+A8 -> 2024 | K9: mg/Nm3 | L9: Monthly mean of half-hourly averages | M9: Highest half- hourly average | N9: Monthly mean of daily averages | O9: Highest daily average
A10: Jan | B10: 100 | E10: 50 | J10: A1 | K10: Jan
A11: Feb | B11: =+B10 -> 100 | E11: =+E10 -> 50 | K11: Feb
A12: Mar | B12: =+B11 -> 100 | E12: =+E11 -> 50 | K12: Mar | Q12: Whole Installation table A5:G18:
A13: Apr | B13: 100 | E13: 50 | K13: Apr | Q13: Mean: for 1/2 hourly and daily periods calculate mean of values across all operational combustion lines for the month
A14: May | B14: 100 | E14: 50 | K14: May
A15: Jun | B15: 100 | E15: 50 | K15: Jun
A16: Jul | B16: 100 | E16: 50 | K16: Jul | Q16: Maximum: for 1/2 hourly and daily periods use the highest value across all operational combustion lines for the month
A17: Aug | B17: 100 | E17: 50 | K17: Aug
A18: Sep | B18: 100 | E18: 50 | K18: Sep
A19: Oct | B19: 100 | E19: 50 | K19: Oct
A20: Nov | B20: 100 | E20: 50 | K20: Nov
A21: Dec | B21: 100 | E21: 50 | K21: Dec
K22: Annual | L22: =AVERAGE(L10:L21) ->  | M22: =MAX(M10:M21) -> 0 | N22: =AVERAGE(N10:N21) ->  | O22: =MAX(O10:O21) -> 0
J24: =+A8 -> 2024 | K24: mg/Nm3 | L24: Monthly mean of half-hourly averages | M24: Highest half- hourly average | N24: Monthly mean of daily averages | O24: Highest daily average
J25: A2 | K25: Jan
K26: Feb
K27: Mar
K28: Apr
K29: May
K30: Jun
K31: Jul
K32: Aug
K33: Sep
K34: Oct
K35: Nov
K36: Dec
K37: Annual | L37: =AVERAGE(L25:L36) ->  | M37: =MAX(M25:M36) -> 0 | N37: =AVERAGE(N25:N36) ->  | O37: =MAX(O25:O36) -> 0
J39: =+A8 -> 2024 | K39: mg/Nm3 | L39: Monthly mean of half-hourly averages | M39: Highest half- hourly average | N39: Monthly mean of daily averages | O39: Highest daily average
J40: A3 | K40: Jan
K41: Feb
K42: Mar
K43: Apr
K44: May
K45: Jun
K46: Jul
K47: Aug
K48: Sep
K49: Oct
K50: Nov
A51: Comments : | K51: Dec
K52: Annual | L52: =AVERAGE(L40:L51) ->  | M52: =MAX(M40:M51) -> 0 | N52: =AVERAGE(N40:N51) ->  | O52: =MAX(O40:O51) -> 0
J54: =+A8 -> 2024 | K54: mg/Nm3 | L54: Monthly mean of half-hourly averages | M54: Highest half- hourly average | N54: Monthly mean of daily averages | O54: Highest daily average
J55: A4 | K55: Jan
K56: Feb
K57: Mar
K58: Apr
K59: May
K60: Jun
K61: Jul
K62: Aug
K63: Sep
K64: Oct
K65: Nov
K66: Dec
K67: Annual | L67: =AVERAGE(L55:L66) ->  | M67: =MAX(M55:M66) -> 0 | N67: =AVERAGE(N55:N66) ->  | O67: =MAX(O55:O66) -> 0
J69: =+A8 -> 2024 | K69: mg/Nm3 | L69: Monthly mean of half-hourly averages | M69: Highest half- hourly average | N69: Monthly mean of daily averages | O69: Highest daily average
J70: A5 | K70: Jan
K71: Feb
K72: Mar
K73: Apr
K74: May
K75: Jun
K76: Jul
K77: Aug
K78: Sep
K79: Oct
K80: Nov
K81: Dec
K82: Annual | L82: =AVERAGE(L70:L81) ->  | M82: =MAX(M70:M81) -> 0 | N82: =AVERAGE(N70:N81) ->  | O82: =MAX(O70:O81) -> 0

Sheet CO 95% 10 min
A1: =+'Cover Page'!$B$29 -> Annual Performance Report 2024 | E1: =+'Cover Page'!$B$33 -> SUEZ R&R Kirklees EfW
A3: Monitoring of Carbon Monoxide (10-minute avg) | E3: Whole Installation | H3: See Notes in Cell S3 | J3: =+A3 -> Monitoring of Carbon Monoxide (10-minute avg) | O3: Per Combustion Line | Q3: Notes: | S3: Notes:
A5: Please complete this tab for your plant if you have 10-minute average CO ELVs; otherwise, leave it blank and complete the CO 0.5 hourly tab
S7: User to add logic to complete Whole installation, Table A5:H18. From the data in Per Combustion Line, Table K6:Q79, subject to No. of lines installed
A8: =+'Cover Page'!C39 -> 2024 | B8: 10-minute Reference Periods | F8: Daily Reference Periods
A9: mg/Nm3 | B9: 95%ile 10-min avg CO ELV | C9: Highest daily 95%ile 10-min average | D9: Monthly mean of 10-min averages | E9: Highest 10-min average | F9: Daily CO ELV | G9: Monthly mean of daily averages | H9: Highest daily average | K9: =+A8 -> 2024 | L9: mg/Nm3 | M9: Highest daily 95%ile 10-min average | N9: Monthly mean of 10-min averages | O9: Highest 10-min average | P9: Monthly mean of daily averages | Q9: Highest daily average
A10: Jan | B10: 150 | C10: =AVERAGE(M10,M25,M40,M55,M70) -> 90.8 | D10: =AVERAGE(N10,N25,N40,N55,N70) -> 26 | E10: =MAX(O10,O25,O40,O55,O70) -> 431 | F10: 50 | G10: =AVERAGE(P10,P25,P40,P55,P70) -> 26 | H10: =MAX(Q10,Q25,Q40,Q55,Q70) -> 34 | K10: A1 | L10: Jan | M10: 90.8 | N10: 26 | O10: 431 | P10: 26 | Q10: 34
A11: Feb | B11: =+B10 -> 150 | C11: =AVERAGE(M11,M26,M41,M56,M71) -> 76 | D11: =AVERAGE(N11,N26,N41,N56,N71) -> 28 | E11: =MAX(O11,O26,O41,O56,O71) -> 715 | F11: =+F10 -> 50 | G11: =AVERAGE(P11,P26,P41,P56,P71) -> 28 | H11: =MAX(Q11,Q26,Q41,Q56,Q71) -> 39 | L11: Feb | M11: 76 | N11: 28 | O11: 715 | P11: 28 | Q11: 39
A12: Mar | B12: =+B11 -> 150 | C12: 86 | D12: 23 | E12: 648 | F12: =+F11 -> 50 | G12: 23 | H12: 40 | L12: Mar | M12: 86 | N12: 23 | O12: 648 | P12: 23 | Q12: 40 | S12: Whole Installation table A5:H18:
A13: Apr | B13: 150 | C13: 112 | D13: 35 | E13: 247 | F13: 50 | G13: 35 | H13: 38 | L13: Apr | M13: 112 | N13: 35 | O13: 247 | P13: 35 | Q13: 38 | S13: Mean: for 10-min and daily periods use average of all operational combustion lines.
A14: May | B14: 150 | C14: 117 | D14: 29.4 | E14: 366 | F14: 50 | G14: 29.4 | H14: 43.5 | L14: May | M14: 117 | N14: 29.4 | O14: 366 | P14: 29.4 | Q14: 43.5
A15: Jun | B15: 150 | C15: 86 | D15: 26.2 | E15: 495 | F15: 50 | G15: 26.2 | H15: 36 | L15: Jun | M15: 86 | N15: 26.2 | O15: 495 | P15: 26.2 | Q15: 36
A16: Jul | B16: 150 | C16: 96 | D16: 32 | E16: 930 | F16: 50 | G16: 32 | H16: 40 | L16: Jul | M16: 96 | N16: 32 | O16: 930 | P16: 32 | Q16: 40 | S16: Maximum: for 10-min and daily periods use the highest of all operational combustion lines in any month.
A17: Aug | B17: 150 | C17: 90 | D17: 30 | E17: 665 | F17: 50 | G17: 30 | H17: 38 | L17: Aug | M17: 90 | N17: 30 | O17: 665 | P17: 30 | Q17: 38
A18: Sep | B18: 150 | C18: 88 | D18: 30 | E18: 468 | F18: 50 | G18: 30 | H18: 44 | L18: Sep | M18: 88 | N18: 30 | O18: 468 | P18: 30 | Q18: 44
A19: Oct | B19: 150 | C19: 101 | D19: 29 | E19: 823 | F19: 50 | G19: 29 | H19: 37 | L19: Oct | M19: 101 | N19: 29 | O19: 823 | P19: 29 | Q19: 37
A20: Nov | B20: 150 | C20: 108 | D20: 30.9 | E20: 480.5 | F20: 50 | G20: 30.9 | H20: 41.5 | L20: Nov | M20: 108 | N20: 30.9 | O20: 480.5 | P20: 30.9 | Q20: 41.5
A21: Dec | B21: 150 | C21: 103 | D21: 30.1 | E21: 648 | F21: 50 | G21: 30.1 | H21: 43 | L21: Dec | M21: 103 | N21: 30.1 | O21: 648 | P21: 30.1 | Q21: 43
L22: Annual | M22: =AVERAGE(M10:M21) -> 96.15 | O22: =MAX(O10:O21) -> 930 | P22: =AVERAGE(P10:P21) -> 29.13333333 | Q22: =MAX(Q10:Q21) -> 44
K24: =+A8 -> 2024 | L24: mg/Nm3 | M24: Highest daily 95%ile 10-min average | N24: Monthly mean of 10-min averages | O24: Highest 10-min average | P24: Monthly mean of daily averages | Q24: Highest daily average
K25: A2 | L25: Jan
L26: Feb
L27: Mar
L28: Apr
L29: May
L30: Jun
L31: Jul
L32: Aug
L33: Sep
L34: Oct
L35: Nov
L36: Dec
L37: Annual | M37: =AVERAGE(M25:M36) ->  | O37: =MAX(O25:O36) -> 0 | P37: =AVERAGE(P25:P36) ->  | Q37: =MAX(Q25:Q36) -> 0
K39: =+A8 -> 2024 | L39: mg/Nm3 | M39: Highest daily 95%ile 10-min average | N39: Monthly mean of 10-min averages | O39: Highest 10-min average | P39: Monthly mean of daily averages | Q39: Highest daily average
K40: A3 | L40: Jan
L41: Feb
L42: Mar
L43: Apr
L44: May
L45: Jun
L46: Jul
L47: Aug
L48: Sep
L49: Oct
L50: Nov
A51: Comments : | L51: Dec
A52: Environment Agency explanatory note: The 10-minute average ELV is based on the “95th percentile”. In this case this means that 95% of the 10 minute averages in the relevant 24-hour period (i.e. 137) must be below 150 mg/Nm3, and 5% (i.e. 7) are allowed to be any value above 150 mg/Nm3. Whilst we expect operators to minimise CO emissions at all times, it is perfectly acceptable for the value of the maximum 10-minute average to be above 150 mg/Nm3, provided the 95th percentile ELV has been met for that period. | L52: Annual | M52: =AVERAGE(M40:M51) ->  | O52: =MAX(O40:O51) -> 0 | P52: =AVERAGE(P40:P51) ->  | Q52: =MAX(Q40:Q51) -> 0
K54: =+A8 -> 2024 | L54: mg/Nm3 | M54: Highest daily 95%ile 10-min average | N54: Monthly mean of 10-min averages | O54: Highest 10-min average | P54: Monthly mean of daily averages | Q54: Highest daily average
K55: A4 | L55: Jan
L56: Feb
L57: Mar
L58: Apr
L59: May
L60: Jun
L61: Jul
L62: Aug
L63: Sep
L64: Oct
L65: Nov
L66: Dec
L67: Annual | M67: =AVERAGE(M55:M66) ->  | O67: =MAX(O55:O66) -> 0 | P67: =AVERAGE(P55:P66) ->  | Q67: =MAX(Q55:Q66) -> 0
K69: =+A8 -> 2024 | L69: mg/Nm3 | M69: 95%ile 10-min avg maximum | N69: Monthly CO 10-min avg mean | O69: 10-min avg maximum | P69: Monthly daily mean | Q69: Monthly daily maximum
K70: A5 | L70: Jan
L71: Feb
L72: Mar
L73: Apr
L74: May
L75: Jun
L76: Jul
L77: Aug
L78: Sep
L79: Oct
L80: Nov
L81: Dec
L82: Annual | M82: =AVERAGE(M70:M81) ->  | O82: =MAX(O70:O81) -> 0 | P82: =AVERAGE(P70:P81) ->  | Q82: =MAX(Q70:Q81) -> 0

Sheet NH3
A1: =+'Cover Page'!$B$29 -> Annual Performance Report 2024 | E1: =+'Cover Page'!$B$33 -> SUEZ R&R Kirklees EfW
A3: Monitoring of Ammnonia emissions | D3: Whole Installation | G3: See Notes in Cell Q3 | J3: =+A3 -> Monitoring of Ammnonia emissions | N3: Per Combustion Line | Q3: Notes:
Q4: User to add logic to complete Whole installation, Table A5:G18. From the data in Per Combustion Line, Table J6:O79, subject to No. of lines installed
A5: =+'Cover Page'!C39 -> 2024 | B5: 1/2 Hourly Reference Periods | E5: Daily Reference Periods
A6: mg/Nm3 | B6: 1/2 hourly NH3 ELV | C6: Monthly mean of half-hourly averages | D6: Highest half- hourly average | E6: Daily NH3 ELV | F6: Monthly mean of daily averages | G6: Highest daily average | J6: =+A5 -> 2024 | K6: mg/Nm3 | L6: Monthly mean of half-hourly averages | M6: Highest half- hourly average | N6: Monthly mean of daily averages | O6: Highest daily average
A7: Jan | B7: None | C7: =AVERAGE(L7,L22,L37,L52,L67) -> 0.8 | D7: =MAX(M7,M22,M37,M52,M67) -> 23 | E7: 15 | F7: =AVERAGE(N7,N22,N37,N52,N67) -> 0.8 | G7: =MAX(O7,O22,O37,O52,O67) -> 2.4 | J7: A1 | K7: Jan | L7: 0.8 | M7: 23 | N7: 0.8 | O7: 2.4
A8: Feb | B8: =+B7 -> None | C8: =AVERAGE(L8,L23,L38,L53,L68) -> 0.8 | D8: =MAX(M8,M23,M38,M53,M68) -> 23.5 | E8: 15 | F8: =AVERAGE(N8,N23,N38,N53,N68) -> 0.8 | G8: =MAX(O8,O23,O38,O53,O68) -> 1.8 | K8: Feb | L8: 0.8 | M8: 23.5 | N8: 0.8 | O8: 1.8
A9: Mar | B9: =+B8 -> None | C9: 0.6 | D9: 2.5 | E9: 15 | F9: 0.6 | G9: 0.8 | K9: Mar | L9: 0.6 | M9: 2.5 | N9: 0.6 | O9: 0.8 | Q9: Whole Installation table A5:G18:
A10: Apr | B10: None | C10: 1.8 | D10: 15 | E10: 15 | F10: 1.8 | G10: 4.4 | K10: Apr | L10: 1.8 | M10: 15 | N10: 1.8 | O10: 4.4 | Q10: Mean: for 1/2 hourly and daily periods calculate mean of values across all operational combustion lines for the month
A11: May | B11: None | C11: 0.8 | D11: 8.7 | E11: 15 | F11: 0.8 | G11: 1.2 | K11: May | L11: 0.8 | M11: 8.7 | N11: 0.8 | O11: 1.2
A12: Jun | B12: None | C12: 0.7 | D12: 3.6 | E12: 15 | F12: 0.7 | G12: 1 | K12: Jun | L12: 0.7 | M12: 3.6 | N12: 0.7 | O12: 1
A13: Jul | B13: None | C13: 0.7 | D13: 14 | E13: 15 | F13: 0.7 | G13: 1.3 | K13: Jul | L13: 0.7 | M13: 14 | N13: 0.7 | O13: 1.3 | Q13: Maximum: for 1/2 hourly and daily periods use the highest value across all operational combustion lines for the month
A14: Aug | B14: None | C14: 0.5 | D14: 3.5 | E14: 15 | F14: 0.5 | G14: 0.7 | K14: Aug | L14: 0.5 | M14: 3.5 | N14: 0.5 | O14: 0.7
A15: Sep | B15: None | C15: 0.6 | D15: 3.3 | E15: 15 | F15: 0.6 | G15: 1 | K15: Sep | L15: 0.6 | M15: 3.3 | N15: 0.6 | O15: 1
A16: Oct | B16: None | C16: 0.6 | D16: 6.3 | E16: 15 | F16: 0.6 | G16: 0.9 | K16: Oct | L16: 0.6 | M16: 6.3 | N16: 0.6 | O16: 0.9
A17: Nov | B17: None | C17: 0.6 | D17: 2.1 | E17: 15 | F17: 0.6 | G17: 0.8 | K17: Nov | L17: 0.6 | M17: 2.1 | N17: 0.6 | O17: 0.8
A18: Dec | B18: None | C18: 0.6 | D18: 3.8 | E18: 15 | F18: 0.6 | G18: 0.9 | K18: Dec | L18: 0.6 | M18: 3.8 | N18: 0.6 | O18: 0.9
K19: Annual | L19: =AVERAGE(L7:L18) -> 0.7583333333 | M19: =MAX(M7:M18) -> 23.5 | N19: =AVERAGE(N7:N18) -> 0.7583333333 | O19: =MAX(O7:O18) -> 4.4
J21: =+A5 -> 2024 | K21: mg/Nm3 | L21: Monthly mean of half-hourly averages | M21: Highest half- hourly average | N21: Monthly mean of daily averages | O21: Highest daily average
J22: A2 | K22: Jan
K23: Feb
K24: Mar
K25: Apr
K26: May
K27: Jun
K28: Jul
K29: Aug
K30: Sep
K31: Oct
K32: Nov
K33: Dec
K34: Annual | L34: =AVERAGE(L22:L33) ->  | M34: =MAX(M22:M33) -> 0 | N34: =AVERAGE(N22:N33) ->  | O34: =MAX(O22:O33) -> 0
J36: =+A5 -> 2024 | K36: mg/Nm3 | L36: Monthly mean of half-hourly averages | M36: Highest half- hourly average | N36: Monthly mean of daily averages | O36: Highest daily average
J37: A3 | K37: Jan
K38: Feb
K39: Mar
K40: Apr
K41: May
K42: Jun
K43: Jul
K44: Aug
K45: Sep
K46: Oct
K47: Nov
A48: Comments : | K48: Dec
A49: An indicated ELV value of zero in the table above means that no ammonia limit is/was set in the permit. | K49: Annual | L49: =AVERAGE(L37:L48) ->  | M49: =MAX(M37:M48) -> 0 | N49: =AVERAGE(N37:N48) ->  | O49: =MAX(O37:O48) -> 0
J51: =+A5 -> 2024 | K51: mg/Nm3 | L51: Monthly mean of half-hourly averages | M51: Highest half- hourly average | N51: Monthly mean of daily averages | O51: Highest daily average
J52: A4 | K52: Jan
K53: Feb
K54: Mar
K55: Apr
K56: May
K57: Jun
K58: Jul
K59: Aug
K60: Sep
K61: Oct
K62: Nov
K63: Dec
K64: Annual | L64: =AVERAGE(L52:L63) ->  | M64: =MAX(M52:M63) -> 0 | N64: =AVERAGE(N52:N63) ->  | O64: =MAX(O52:O63) -> 0
J66: =+A5 -> 2024 | K66: mg/Nm3 | L66: Monthly mean of half-hourly averages | M66: Highest half- hourly average | N66: Monthly mean of daily averages | O66: Highest daily average
J67: A5 | K67: Jan
K68: Feb
K69: Mar
K70: Apr
K71: May
K72: Jun
K73: Jul
K74: Aug
K75: Sep
K76: Oct
K77: Nov
K78: Dec
K79: Annual | L79: =AVERAGE(L67:L78) ->  | M79: =MAX(M67:M78) -> 0 | N79: =AVERAGE(N67:N78) ->  | O79: =MAX(O67:O78) -> 0

Sheet Template changes log
A1: Log of changes to template (Environment Agency use only)
A3: Date | B3: Description of change | C3: New version number and date
A4: 2024-01-16 | B4: Air (periodic) tab: corrected default O2 reference from 6 to 11% | C4: Version 23.5a (for incinerators) - 16/01/2024
A5: 2024-09-23 | B5: Air (periodic) tab: corrected symbol for Thallium to Tl
A6: 2024-09-23 | B6: Air (periodic) tab: removed last year's references to different emission limit values applying from 03/12/23 and updated all relevant ELVs
A7: 2024-09-23 | B7: Tabs for continuously monitored pollutants (HCl, SO2 etc.): changed terminology in table headings to improve clarity
A8: 2024-09-23 | B8: Tabs for continuously monitored pollutants (HCl, SO2 etc.): removed last year's references to different emission limit values applying from 03/12/23 and updated all relevant ELVs
A9: 2024-09-23 | B9: Perf 1 tab: updated formula for water usage to report m3 rather than litres and corrected error with formula copying operator name
A10: 2024-09-23 | B10: Operational Summary tab: table added on start-up's and shut-downs
A11: 2024-09-23 | B11: Operational Summary tab: table added on dioxins and mercury protocols
A12: 2024-09-23 | B12: Operational Summary tab: table added on AST, QAL 2 and calibration functions
A13: 2024-09-23 | B13: CO2 N2O tab: various changes made to notes to reflect the fact that most plants should now have calibrated CEMS and flow meters + some have C14 samplers and more up to date industry data | C13: Version 24a (for incinerators) - 23/09/24
A14: 2024-01-08 | B14: CO2 N2O tab: Changed the N2O CO2 equivalence factor from 298 to 265 in line with recently updated government greenhouse gas figures: https://www.gov.uk/government/publications/greenhouse-gas-reporting-conversion-factors-2024
A15: 2024-01-08 | B15: CO2 N2O tab: Added an additional requirement for municipal EfW plants to state the yearly average biogenic percentage of the waste by mass, and reference to a document which sets out a methodology for calculating NCV of waste from the results of C14 sampling.
A16: 2024-01-08 | B16: Permit Compliance tab: Two additional columns added + explanatory notes to the table entitled "Summary of non-compliances under the permit" to allow CCS scores to be stated where relevant.
A17: 2024-01-08 | B17: Residue Quality tab: Note added explaining application of TOC and LOI limits and asking operators to report both metrics where measured. | C17: Version 24.1a (for incinerators) - 08/11/24
